Workbook

Sheet Instructions
A1: MSPM0 Power Estimator Spreadsheet
A2: Revision: 1.7
A3: 2024-10-10
A5: Summary
A6: This spreadsheet can help estimate the power consumption of your design based on used peripherals, operation temperature, and operation power domain
A8: Instructions
A9: 1. On the subsystems input tab, start by selecting the operation mode in B2, the operation temp in B3, the Execute from... in B4, and manually enter in the Supply voltage for the M0 in B5 2. Based on the mode selected B6 and B7 will auto-populate with availible options for MCLK source and frequency, select from the choices in each box 3. Click on "Update Form" which will populate the core current consumption and automatically enable any clocks that are selected in B6 3. Peripherals and clocks that are enabled or optional will automatically populate with drop down lists for selecting operational parameters of each item 4. Go through the peripherals and select the options that best match the mode for a particular duration 5. Once all peripherals are added, add a time duration for the mode/operation 6. Click on "Add to Total" button and the power consumption will be calculated based on the time period as a part of the complete duration, and the chart will populate with graphical data based on the timeline 7. to remove the last operation from the list click the "Remove" button 8. To reset sheet, click the "Update/Reset View" button next to the run mode drop down 9. Once all the modes and times are added the Power estimation output will be populated with each mode with current consumption data for all active peripherals 10. Add the desired location for the PDF report output and the name you want to use for the report. Click generate report and next go to the location you typed in and you should see a PDF version of the Power Estimation Output
A11: Color Coding
B12: Peripheral Cell (do not edit)
B13: =Cell not availible for change currently
A14: --Select Option-- | B14: =Cell with availible dropdown menu
B15: =Cell in which numerical data can be entered
B16: =Total calculated Power value. Do not edit.
A18: Current Status and known Bugs
A20: 1. GPIO is currently not fully implemented
A21: 2. DAC is not currently fully implemented
A22: 3. Timers currnet consumption values are not fully implemented yet
A23: 4. PMU and Flash has yet to be implemented, but the blocks are there for a placeholder
A24: 5. SPI and I2C currently only have the data for Controller mode so selecting peripheral won't add to the total power

Sheet Subsystem Inputs
A1: Device Initialization Parameters
A2: Operation Mode | B2: Run 0
A3: Temperature | B3: 25C
A4: Mem Exec SRC | B4: Flash
A5: Supply Voltage | B5: 3.3
A6: MCLK Source | B6: Enter CLK Source
A7: MCLK Frequency | B7: Select Frequency
A8: MSPM0G Power Estimation Tool
A9: Peripheral Definition
A10: CORE FUNCTIONS | H10: COMMUNICATION
A11: OPERATING MODE | B11: Enable/Disable | C11: Parameter 1 | D11: Parameter 2 | E11: Current | F11: Units | G11: Total Power | H11: OPERATING MODE | I11: Enable/Disable | J11: Parameter 1 | K11: Parameter 2 | L11: Parameter 3 | M11: Parameter 4 | N11: Current | O11: Units | P11: Total Power
A12: CPU | B12: EN | C12: ="Base Current in " &B2 -> Base Current in Run 0 | E12: 0 | F12: mA | G12: 0 | H12: UART0 | I12: --Select Option-- | N12: 0 | O12: mA | P12: 0
A13: DMA | B13: --Select Option-- | E13: 0 | F13: mA | G13: 0 | H13: UART1 | I13: --Select Option-- | N13: 0 | O13: mA | P13: 0
A14: Flash | B14: EN | E14: 0 | F14: mA | G14: 0 | H14: UART2 | I14: --Select Option-- | N14: 0 | O14: mA | P14: 0
A15: SRAM | B15: EN | E15: 0 | F15: mA | G15: 0 | H15: UART3 | I15: --Select Option-- | N15: 0 | O15: mA | P15: 0
A16: PMU | H16: SPI0 | I16: --Select Option-- | N16: 0 | O16: mA | P16: 0
A17: OPERATING MODE | B17: Enable/Disable | C17: Parameter 1 | D17: Parameter 2 | E17: Current | F17: Units | G17: Total Power | H17: SPI1 | I17: --Select Option-- | N17: 0 | O17: mA | P17: 0
A18: Core regulator | B18: FULL DRIVE | G18: 0 | H18: I2C0 | I18: --Select Option-- | N18: 0 | O18: mA | P18: 0
A19: FLASH MEMORY | H19: I2C1 | I19: --Select Option-- | N19: 0 | O19: mA | P19: 0
A20: OPERATING MODE | B20: Enable/Disable | C20: Parameter 1 | D20: Parameter 2 | F20: mA | G20: Total Power | H20: MCAN0 | I20: --Select Option-- | N20: 0 | O20: uA | P20: 0
A21: VDD PRGM/ERASE | B21: 3.3 | F21: V | H21: SIGNAL INTERFACE
A22: FLASH PGM | B22: --Select Option-- | E22: 0 | F22: mA | G22: 0 | H22: OPERATING MODE | I22: Enable/Disable | J22: Parameter 1 | K22: Parameter 2 | L22: Parameter 3 | M22: Parameter 4 | N22: Current | O22: Units | P22: Total Power
A23: FLASH ERASE | B23: --Select Option-- | E23: 0 | F23: mA | G23: 0 | H23: ADC0 | I23: --Select Option-- | N23: 0 | O23: mA | P23: 0
A24: CLOCKS | H24: ADC1 | I24: --Select Option-- | N24: 0 | O24: mA | P24: 0
A25: OPERATING MODE | B25: Enable/Disable | C25: Parameter 1 | D25: Parameter 2 | E25: Current | F25: Units | G25: Total Power | H25: DAC0 | I25: --Select Option-- | N25: 0 | O25: mA | P25: 0
A26: SYSOSC | B26: EN | E26: 0 | F26: mA | G26: 0 | H26: ANALOG PERIPHERALS
A27: LFOSC or LFXT | B27: --Select Option-- | E27: 0 | F27: mA | G27: 0 | H27: OPERATING MODE | I27: Enable/Disable | J27: Parameter 1 | K27: Parameter 2 | L27: Parameter 3 | M27: Parameter 4 | N27: Current | O27: Units | P27: Total Power
A28: HFXT | B28: --Select Option-- | E28: 0 | F28: uA | G28: 0 | H28: OPA0 | I28: --Select Option-- | N28: 0 | O28: mA | P28: 0
A29: SYSPLL | B29: --Select Option-- | E29: 0 | F29: mA | G29: 0 | H29: OPA1 | I29: --Select Option-- | N29: 0 | O29: mA | P29: 0
A30: RTCCLK | B30: 32 kHz | E30: 0 | F30: µA | G30: 0 | H30: GPAMP | I30: --Select Option-- | N30: 0 | O30: mA | P30: 0
A31: MFCLK | B31: --Select Option-- | E31: 0 | F31: mA | G31: 0 | H31: COMP0 | I31: --Select Option-- | N31: 0 | O31: uA | P31: 0
A32: MFPCLK | B32: --Select Option-- | E32: 0 | F32: µA | G32: 0 | H32: COMP1 | I32: --Select Option-- | N32: 0 | O32: uA | P32: 0
A33: TIMERS | H33: COMP2 | I33: --Select Option-- | N33: 0 | O33: uA | P33: 0
A34: OPERATING MODE | B34: Enable/Disable | C34: Parameter 1 | D34: Parameter 2 | E34: Current | F34: Units | G34: Total Power | H34: GPIO
A35: TIMA0 | B35: --Select Option-- | E35: 0 | F35: mA | G35: 0 | H35: OPERATING MODE | I35: Enable/Disable | J35: Parameter 1 | K35: Parameter 2 | L35: Parameter 3 | M35: Parameter 4 | N35: Current | O35: Units | P35: Total Power
A36: TIMA1 | B36: --Select Option-- | E36: 0 | F36: mA | G36: 0 | H36: GPIOA | I36: --Select Option-- | N36: 0 | O36: mA | P36: 0
A37: TIMG0 | B37: --Select Option-- | E37: 0 | F37: mA | G37: 0 | H37: GPIOB | I37: --Select Option-- | N37: 0 | O37: mA | P37: 0
A38: TIMG1 | B38: --Select Option-- | E38: 0 | F38: mA | G38: 0
A39: TIMG6 | B39: --Select Option-- | E39: 0 | F39: mA | G39: 0
A40: TIMG7 | B40: --Select Option-- | E40: 0 | F40: mA | G40: 0
A41: TIMG8 | B41: --Select Option-- | E41: 0 | F41: uA | G41: 0
A42: TIMG12 | B42: --Select Option-- | E42: 0 | F42: uA | G42: 0
A43: PD1 PERIPHERALS | H43: C:\ti\Power Estimation Outputs\
A44: OPERATING MODE | B44: Enable/Disable | C44: Parameter 1 | D44: Parameter 2 | E44: Current | F44: Units | G44: Total Power | H44: Test
A45: WWDT0 | B45: --Select Option-- | E45: 0 | F45: uA | G45: 0 | H45: ="Estimated Power Consumption for: " &B2 -> Estimated Power Consumption for: Run 0
A46: WWDT1 | B46: --Select Option-- | E46: 0 | F46: uA | G46: 0
A47: RTC | B47: --Select Option-- | E47: 0 | F47: uA | G47: 0 | H47: Total Esimated Power Consumption | J47: Value | K47: Units | L47: Period (ms)
A48: MATHACL | B48: --Select Option-- | E48: 0 | F48: uA | G48: 0 | J48: =SUM(G12:G15,G18,G22:G23,G26:G32,G35:G42,G45:G51,P12:P20,P23:P25,P28:P33,P36:P37)*1000 -> 0 | K48: mW
A49: AES | B49: --Select Option-- | E49: 0 | F49: uA | G49: 0
A50: CRC | B50: --Select Option-- | E50: 0 | F50: uA | G50: 0 | H50: Operation Mode | J50: Total Estimated Power Consumption | L50: Time Period in Mode (mS) | N50: Total % in Time | O50: Total Estimated Power
A51: TRNG | B51: --Select Option-- | E51: 0 | F51: uA | G51: 0
Q54: =IF(ISNUMBER(#REF!),#REF!+#REF!,"") -> 

Sheet Power Estimation Output (hidden)
A1: POWER ESTIMATION REPORT

Sheet Lists (hidden)
A1: Peripheral | B1: Option 0 | C1: Option 1 | D1: Option 2 | E1: Option 3 | F1: Option 4 | G1: Option 5 | H1: Option 6 | I1: Option 7 | J1: Option 8
A2: CPU
A4: DMA | B4: --Select Option--
B5: EN
B6: DIS
A8: Flash
A9: SRAM | V9: Unused Pin Configuration
A10: Core regulator | V10: Direction | W10: Configure Output
A11: VDD PRGM/ERASE | B11: ='Subsystem Inputs'!B5 -> 3.3
A13: FLASH PGM | B13: --Select Option--
B14: EN | V14: --Select Option-- | W14: --Select Option--
B15: DIS | V15: Output | W15: Low
A17: FLASH ERASE | B17: --Select Option--
B18: EN
B19: DIS | V19: Input | W19: High
A21: MCLK Source | B21: SYSOSC | C21: SYSOSC | D21: SYSPLL | E21: LFOSC | F21: LFXT
B22: SYSPLL | C22: SYSOSC | D22: SYSPLL | E22: LFOSC | F22: LFXT
B23: LFOSC | C23: 32 MHz | D23: 80 MHz | E23: 32 kHz | F23: 32 kHz
B24: LFXT | C24: 4 MHz | D24: 48 MHz
A26: SYSOSC | B26: --Select Option-- | C26: --Select Frequency-- | W26: --Select Option--
B27: EN | C27: 32MHz | W27: No Resistor
B28: DIS | C28: 4MHz | W28: Pull-Up Resistor
A30: LFOSC or LFXT | B30: --Select Option-- | W30: Pull-Down Resistor
B31: LFOSC
B32: LFXT
A34: HFXT | B34: --Select Option-- | C34: --Select Frequency--
B35: EN | C35: 4MHz
B36: DIS | C36: 48MHz
A38: SYSPLL | B38: --Select Option-- | C38: --Select Frequency--
B39: EN | C39: 48 MHz
B40: DIS | C40: 80 MHz
A42: RTCCLK
A44: MFCLK | B44: --Select Option--
B45: EN
B46: DIS
A48: MFPCLK | B48: --Select Option--
B49: EN
B50: DIS
A52: LFCLK Monitor | B52: --Select Option--
B53: EN
B54: DIS
A56: MCLK Monitor | B56: --Select Option--
B57: EN
B58: DIS
A60: TIMA0 | B60: --Select Option-- | C60: --Select Option--
B61: EN | C61: Capture/Compare
B62: DIS | C62: PWM
A64: TIMA1 | B64: --Select Option-- | C64: --Select Option--
B65: EN | C65: Capture/Compare
B66: DIS | C66: PWM
A68: TIMG0 | B68: --Select Option-- | C68: --Select Option--
B69: EN | C69: Capture/Compare
B70: DIS | C70: PWM
A72: TIMG1 | B72: --Select Option-- | C72: --Select Option--
B73: EN | C73: Capture/Compare
B74: DIS | C74: PWM
A76: TIMG6 | B76: --Select Option-- | C76: --Select Option--
B77: EN | C77: Capture/Compare
B78: DIS | C78: PWM
A80: TIMG7 | B80: --Select Option-- | C80: --Select Option--
B81: EN | C81: Capture/Compare
B82: DIS | C82: PWM
A84: TIMG8 | B84: --Select Option-- | C84: --Select Option--
B85: EN | C85: Capture/Compare
B86: DIS | C86: PWM
A88: TIMG12 | B88: --Select Option-- | C88: --Select Option--
B89: EN | C89: Capture/Compare
B90: DIS | C90: PWM
A92: WWDT0 | B92: --Select Option--
B93: EN
B94: DIS
A96: WWDT1 | B96: --Select Option--
B97: EN
B98: DIS
A100: RTC | B100: --Select Option--
B101: EN
B102: DIS
A104: MATHACL | B104: --Select Option--
B105: EN
B106: DIS
A108: AES | B108: --Select Option--
B109: EN
B110: DIS
A112: CRC | B112: --Select Option--
B113: EN
B114: DIS
A116: TRNG | B116: --Select Option--
B117: EN
B118: DIS
A120: UART0 | B120: --Select Option-- | C120: Select Baud Rate
B121: EN | C121: 9600
B122: DIS | C122: 19200
C123: 57600
C124: 115200
A126: UART1 | B126: --Select Option-- | C126: Select Baud Rate
B127: EN | C127: 9600
B128: DIS | C128: 19200
C129: 57600
C130: 115200
A132: UART2 | B132: --Select Option-- | C132: Select Baud Rate
B133: EN | C133: 9600
B134: DIS | C134: 19200
C135: 57600
C136: 115200
A138: UART3 | B138: --Select Option-- | C138: Select Baud Rate
B139: EN | C139: 9600
B140: DIS | C140: 19200
C141: 57600
C142: 115200
A144: SPI0 | B144: --Select Option-- | C144: --Select Option-- | D144: --Select Data Rate--
B145: EN | C145: Controller Mode | D145: 1MHz
B146: DIS | C146: Peripheral Mode | D146: 2MHz
D147: 4MHz
D148: 8MHz
D149: 16MHz
A151: SPI1 | B151: --Select Option-- | C151: --Select Option-- | D151: --Select Data Rate--
B152: EN | C152: Controller Mode | D152: 1MHz
B153: DIS | C153: Peripheral Mode | D153: 2MHz
D154: 4MHz
D155: 8MHz
D156: 16MHz
A158: I2C0 | B158: --Select Option-- | C158: --Select Option-- | D158: --Select Data Rate--
B159: EN | C159: Controller Mode | D159: Standard Mode
B160: DIS | C160: Peripheral Mode | D160: Fast Mode
D161: Fast Mode Plus
A163: I2C1 | B163: --Select Option-- | C163: --Select Option-- | D163: --Select Data Rate--
B164: EN | C164: Controller Mode | D164: Standard Mode
B165: DIS | C165: Peripheral Mode | D165: Fast Mode
D166: Fast Mode Plus
A168: MCAN0 | B168: --Select Option--
B169: EN
B170: DIS
A172: ADC0 | B172: --Select Option-- | C172: --Select SCOMP-- | D172: --Select CLKDIV-- | E172: --Select VREF Source--
B173: EN | C173: 2 | D173: 1 | E173: 1.4V Internal
B174: DIS | C174: 3 | D174: 2 | E174: 2.5V Internal
C175: 7 | D175: 4 | E175: External
C176: 15 | D176: 8
A178: ADC1 | B178: --Select Option-- | C178: --Select SCOMP-- | D178: --Select CLKDIV-- | E178: --Select VREF Source--
B179: EN | C179: 2 | D179: 1 | E179: 1.4V Internal
B180: DIS | C180: 3 | D180: 2 | E180: 2.5V Internal
C181: 7 | D181: 4 | E181: External
C182: 15 | D182: 8
A184: DAC0 | B184: --Select Option-- | C184: --Select VREF Source-- | D184: --Select Output Voltage-- | E184: --Select Output Voltage--
B185: EN | C185: 1.4V Internal | D185: 2.5 | E185: 1.4
B186: DIS | C186: 2.5V Internal | D186: 2 | E186: 1.2
C187: External | D187: 1.5 | E187: 1
D188: 1 | E188: 0.8
D189: 0.5 | E189: 0.6
E190: 0.5
E191: 0.4
E192: 0.2
A194: GPIOA | B194: --Select Option-- | C194: --Input/Output-- | D194: --Select Pull-Up/Down-- | E194: --Select GPIO Type-- | F194: --Select Option-- | G194: --Select Option-- | H194: --Select Option-- | I194: --Select Option-- | J194: --Select GPIO Status--
B195: EN | C195: Input | D195: None | E195: Standard Drive (SDIO) | F195: 1.5 mA | G195: 1.5 mA | H195: 2 mA | I195: 4 mA | J195: Low
B196: DIS | C196: Output | D196: Pull-Up Resistor | E196: High Speed (HSIO) | F196: 2 mA | G196: 2 mA | H196: 6 mA | I196: 8 mA | J196: High
D197: Pull-Down Resistor | E197: High Drive (HDIO) | F197: 6 mA | G197: 3 mA | H197: 10 mA | J197: High-Z
E198: 5V Open Drain (ODIO) | G198: 4 mA | H198: 20 mA
G199: 6 mA
A201: GPIOB | B201: --Select Option-- | C201: --Input/Output-- | D201: --Select Pull-Up/Down-- | E201: --Select GPIO Type-- | F201: --Select Option-- | J201: --Select GPIO Status--
B202: EN | C202: Input | D202: None | E202: Standard Drive (SDIO) | F202: 1.5 mA | J202: Low
B203: DIS | C203: Output | D203: Pull-Up Resistor | F203: 2 mA | J203: High
D204: Pull-Down Resistor | F204: 6 mA | J204: High-Z
A206: OPA0 | B206: --Select Option-- | C206: --Select Option--
B207: EN | C207: RRI = 0x0, GBW = 0x0
B208: DIS | C208: RRI = 0x0, GBW = 0x01
C209: RRI = 0x1, GBW = 0x0
C210: RRI = 0x1, GBW = 0x01
A212: OPA1 | B212: --Select Option-- | C212: --Select Option--
B213: EN | C213: RRI = 0x0, GBW = 0x0
B214: DIS | C214: RRI = 0x0, GBW = 0x01
C215: RRI = 0x1, GBW = 0x0
C216: RRI = 0x1, GBW = 0x01
A218: GPAMP | B218: --Select Option-- | C218: --Select Option--
B219: EN | C219: 0x00
B220: DIS | C220: 0x01 or 0x02
A222: COMP0 | B222: --Select Option-- | C222: --Select Option--
B223: EN | C223: High Speed Mode w/DAC
B224: DIS | C224: Low Power Mode w/DAC
C225: High Speed Mode Comp Only
C226: Low Power Mode Comp Only
A228: COMP1 | B228: --Select Option-- | C228: --Select Option--
B229: EN | C229: High Speed Mode w/DAC
B230: DIS | C230: Low Power Mode w/DAC
C231: High Speed Mode Comp Only
C232: Low Power Mode Comp Only
A234: COMP2 | B234: --Select Option-- | C234: --Select Option--
B235: EN | C235: High Speed Mode w/DAC
B236: DIS | C236: Low Power Mode w/DAC
C237: High Speed Mode Comp Only
C238: Low Power Mode Comp Only

Sheet Power Data Pull (hidden)
A1: Operation Mode | B1: Temp | C1: Execute From… | D1: Freq. | E1: Current | F1: Units | H1: Peripheral | I1: Condition 1 | J1: Condition 2 | K1: Notes | L1: Consumption | M1: Units | O1: x Range | P1: Min | Q1: Duration | R1: Current | S1: Max x | T1: Max Y | X1: X Range Min | Y1: Y Value | Z1: Max X | AA1: Max Y
A2: Run 0 | B2: -40C | C2: Flash | D2: 80 MHz | E2: 7.5 | F2: mA | H2: SPI0 | I2: Controller Mode | J2: 16MHz | L2: 0.306 | M2: mA | O2: 0 | P2: 0 | Q2: 0 | R2: 0 | S2: =MAX(S3:S9) -> 0 | T2: =1.1*MAX(R2:R9) -> 0 | X2: =Q2 -> 0 | Y2: ='Subsystem Inputs'!J52 -> 0 | Z2: =MAX(X2:X23)+10 -> 10 | AA2: =IF(Y2<>0,CEILING(MAX(Y2:Y23),10),10) -> 10
A3: Run 0 | B3: 25C | C3: Flash | D3: 80 MHz | E3: 7.6 | F3: mA | H3: SPI0 | I3: Controller Mode | J3: 8MHz | L3: 0.302 | M3: mA | O3: ='Subsystem Inputs'!J52 -> 0 | P3: ='Subsystem Inputs'!M52 -> 0 | Q3: =SUM(P2:P3)-P2 -> 0 | R3: ='Subsystem Inputs'!O52 -> 0 | X3: ='Subsystem Inputs'!M52 -> 0 | Y3: =Y2 -> 0
A4: Run 0 | B4: 85C | C4: Flash | D4: 80 MHz | E4: 8 | F4: mA | H4: SPI0 | I4: Controller Mode | J4: 4MHz | L4: 0.303 | M4: mA | O4: ='Subsystem Inputs'!J53 -> 0 | P4: ='Subsystem Inputs'!M53 -> 0 | Q4: =P4+Q3 -> 0 | S4: =SUM(P3:P4) -> 0 | X4: =X3 -> 0 | Y4: ='Subsystem Inputs'!J53 -> 0
A5: Run 0 | B5: 105C | C5: Flash | D5: 80 MHz | E5: 8 | F5: mA | H5: SPI0 | I5: Controller Mode | J5: 2MHz | L5: 0.303 | M5: mA | O5: ='Subsystem Inputs'!J54 -> 0 | P5: ='Subsystem Inputs'!M54 -> 0 | Q5: =Q4+P5 -> 0 | S5: =SUM(P3:P5) -> 0 | X5: ='Subsystem Inputs'!M53+X4 -> 0 | Y5: =Y4 -> 0
A6: Run 0 | B6: 125C | C6: Flash | D6: 80 MHz | E6: 8.6 | F6: mA | H6: SPI0 | I6: Controller Mode | J6: 1MHz | L6: 0.303 | M6: mA | O6: ='Subsystem Inputs'!J55 -> 0 | P6: ='Subsystem Inputs'!M55 -> 0 | Q6: =Q5+P6 -> 0 | S6: =SUM(P3:P6) -> 0 | X6: =X5 -> 0 | Y6: ='Subsystem Inputs'!J54 -> 0
A7: Run 0 | B7: -40C | C7: Flash | D7: 48 MHz | E7: 4.8 | F7: mA | H7: SPI1 | I7: Controller Mode | J7: 16MHz | L7: 0.306 | M7: mA | O7: ='Subsystem Inputs'!J56 -> 0 | P7: ='Subsystem Inputs'!M56 -> 0 | Q7: =P7+Q6 -> 0 | S7: =SUM(P3:P7) -> 0 | X7: ='Subsystem Inputs'!M54+X6 -> 0 | Y7: =Y6 -> 0
A8: Run 0 | B8: 25C | C8: Flash | D8: 48 MHz | E8: 4.9 | F8: mA | H8: SPI1 | I8: Controller Mode | J8: 8MHz | L8: 0.302 | M8: mA | O8: ='Subsystem Inputs'!J57 -> 0 | P8: ='Subsystem Inputs'!M57 -> 0 | Q8: =P8+Q7 -> 0 | S8: =SUM(P3:P8) -> 0 | X8: =X7 -> 0 | Y8: ='Subsystem Inputs'!J55 -> 0
A9: Run 0 | B9: 85C | C9: Flash | D9: 48 MHz | E9: 5.1 | F9: mA | H9: SPI1 | I9: Controller Mode | J9: 4MHz | L9: 0.303 | M9: mA | O9: ='Subsystem Inputs'!J58 -> 0 | P9: ='Subsystem Inputs'!M58 -> 0 | Q9: =P9+Q8 -> 0 | S9: =SUM(P3:P9) -> 0 | X9: ='Subsystem Inputs'!M55+X8 -> 0 | Y9: =Y8 -> 0
A10: Run 0 | B10: 105C | C10: Flash | D10: 48 MHz | E10: 5.2 | F10: mA | H10: SPI1 | I10: Controller Mode | J10: 2MHz | L10: 0.303 | M10: mA | O10: ='Subsystem Inputs'!J59 -> 0 | P10: ='Subsystem Inputs'!M59 -> 0 | X10: =X9 -> 0 | Y10: ='Subsystem Inputs'!J56 -> 0
A11: Run 0 | B11: 125C | C11: Flash | D11: 48 MHz | E11: 5.7 | F11: mA | H11: SPI1 | I11: Controller Mode | J11: 1MHz | L11: 0.303 | M11: mA | O11: ='Subsystem Inputs'!J60 -> 0 | P11: ='Subsystem Inputs'!M60 -> 0 | X11: ='Subsystem Inputs'!M56+X10 -> 0 | Y11: =Y10 -> 0
A12: Run 0 | B12: -40C | C12: Flash | D12: 32 MHz | E12: 3.3 | F12: mA | H12: I2C0 | I12: Controller Mode | J12: Standard Mode | L12: 0.126 | M12: mA | O12: ='Subsystem Inputs'!J61 -> 0 | P12: ='Subsystem Inputs'!M61 -> 0 | X12: =X11 -> 0 | Y12: ='Subsystem Inputs'!J57 -> 0
A13: Run 0 | B13: 25C | C13: Flash | D13: 32 MHz | E13: 3.4 | F13: mA | H13: I2C0 | I13: Controller Mode | J13: Fast Mode | L13: 0.129 | M13: mA | O13: ='Subsystem Inputs'!J62 -> 0 | P13: ='Subsystem Inputs'!M62 -> 0 | X13: ='Subsystem Inputs'!M57+X12 -> 0 | Y13: =Y12 -> 0
A14: Run 0 | B14: 85C | C14: Flash | D14: 32 MHz | E14: 3.7 | F14: mA | H14: I2C0 | I14: Controller Mode | J14: Fast Mode Plus | L14: 1.296 | M14: mA | X14: =X13 -> 0 | Y14: ='Subsystem Inputs'!J58 -> 0
A15: Run 0 | B15: 105C | C15: Flash | D15: 32 MHz | E15: 3.7 | F15: mA | H15: I2C0 | I15: Peripheral Mode | J15: Standard | L15: 0.141 | M15: mA | X15: ='Subsystem Inputs'!M58+X14 -> 0 | Y15: =Y14 -> 0
A16: Run 0 | B16: 125C | C16: Flash | D16: 32 MHz | E16: 4.1 | F16: mA | H16: I2C1 | I16: Controller Mode | J16: Standard Mode | L16: 0.126 | M16: mA | X16: =X15 -> 0 | Y16: ='Subsystem Inputs'!J59 -> 0
A17: Run 0 | B17: -40C | C17: Flash | D17: 4 MHz | E17: 0.6 | F17: mA | H17: I2C1 | I17: Controller Mode | J17: Fast Mode | L17: 0.129 | M17: mA | X17: ='Subsystem Inputs'!M59+X16 -> 0 | Y17: =Y16 -> 0
A18: Run 0 | B18: 25C | C18: Flash | D18: 4 MHz | E18: 0.7 | F18: mA | H18: I2C1 | I18: Controller Mode | J18: Fast Mode Plus | L18: 1.296 | M18: mA | X18: =X17 -> 0 | Y18: ='Subsystem Inputs'!J60 -> 0
A19: Run 0 | B19: 85C | C19: Flash | D19: 4 MHz | E19: 0.8 | F19: mA | H19: I2C1 | I19: Peripheral Mode | J19: Standard | L19: 0.141 | M19: mA | X19: ='Subsystem Inputs'!M60+X18 -> 0 | Y19: =Y18 -> 0
A20: Run 0 | B20: 105C | C20: Flash | D20: 4 MHz | E20: 1 | F20: mA | H20: LFOSC | L20: 0.0003 | M20: mA | X20: =X19 -> 0 | Y20: ='Subsystem Inputs'!J61 -> 0
A21: Run 0 | B21: 125C | C21: Flash | D21: 4 MHz | E21: 1.4 | F21: mA | H21: SYSPLL | L21: 0.316 | M21: mA | X21: ='Subsystem Inputs'!M61+X20 -> 0 | Y21: =Y20 -> 0
A22: Run 0 | B22: -40C | C22: SRAM | D22: 80 MHz | E22: 5.9 | F22: mA | H22: LFXT | L22: 0.0002 | M22: mA | X22: =X21 -> 0 | Y22: ='Subsystem Inputs'!J62 -> 0
A23: Run 0 | B23: 25C | C23: SRAM | D23: 80 MHz | E23: 6 | F23: mA | H23: SYSOSC | I23: 4MHz | L23: 0.02 | M23: mA | X23: ='Subsystem Inputs'!M62+X22 -> 0 | Y23: =Y22 -> 0
A24: Run 0 | B24: 85C | C24: SRAM | D24: 80 MHz | E24: 6.3 | F24: mA | H24: SYSOSC | I24: 32MHz | L24: 0.08 | M24: mA
A25: Run 0 | B25: 105C | C25: SRAM | D25: 80 MHz | E25: 6.4 | F25: mA | H25: MATHACL | L25: 115 | M25: uA
A26: Run 0 | B26: 125C | C26: SRAM | D26: 80 MHz | E26: 6.8 | F26: mA | H26: WWDT0 | L26: 0.3 | M26: uA
A27: Run 0 | B27: -40C | C27: SRAM | D27: 48 MHz | E27: 3.7 | F27: mA | H27: WWDT1 | L27: 0.3 | M27: uA
A28: Run 0 | B28: 25C | C28: SRAM | D28: 48 MHz | E28: 3.8 | F28: mA | H28: RTC | L28: 0.032225 | M28: uA
A29: Run 0 | B29: 85C | C29: SRAM | D29: 48 MHz | E29: 3.8 | F29: mA | H29: AES | M29: uA
A30: Run 0 | B30: 105C | C30: SRAM | D30: 48 MHz | E30: 4.5 | F30: mA | H30: CRC | M30: uA
A31: Run 0 | B31: 125C | C31: SRAM | D31: 48 MHz | E31: 5 | F31: mA | H31: TRNG | L31: 107.32 | M31: uA
A32: Run 0 | B32: -40C | C32: SRAM | D32: 32 MHz | E32: 2.5 | F32: mA | H32: UART0 | I32: 9600 | L32: 0.26995 | M32: mA
A33: Run 0 | B33: 25C | C33: SRAM | D33: 32 MHz | E33: 2.6 | F33: mA | H33: UART0 | I33: 19200 | L33: 0.27435 | M33: mA
A34: Run 0 | B34: 85C | C34: SRAM | D34: 32 MHz | E34: 2.7 | F34: mA | H34: UART0 | I34: 57600 | L34: 0.2989 | M34: mA
A35: Run 0 | B35: 105C | C35: SRAM | D35: 32 MHz | E35: 3 | F35: mA | H35: UART0 | I35: 115200 | L35: 0.3353 | M35: mA
A36: Run 0 | B36: 125C | C36: SRAM | D36: 32 MHz | E36: 3.4 | F36: mA | H36: UART1 | I36: 9600 | L36: 0.26995 | M36: mA
A37: Run 0 | B37: -40C | C37: SRAM | D37: 4 MHz | E37: 0.6 | F37: mA | H37: UART1 | I37: 19200 | L37: 0.27435 | M37: mA
A38: Run 0 | B38: 25C | C38: SRAM | D38: 4 MHz | E38: 0.6 | F38: mA | H38: UART1 | I38: 57600 | L38: 0.2989 | M38: mA
A39: Run 0 | B39: 85C | C39: SRAM | D39: 4 MHz | E39: 0.8 | F39: mA | H39: UART1 | I39: 115200 | L39: 0.3353 | M39: mA
A40: Run 0 | B40: 105C | C40: SRAM | D40: 4 MHz | E40: 0.9 | F40: mA | H40: UART2 | I40: 9600 | L40: 0.26995 | M40: mA
A41: Run 0 | B41: 125C | C41: SRAM | D41: 4 MHz | E41: 1 | F41: mA | H41: UART2 | I41: 19200 | L41: 0.27435 | M41: mA
A42: Run 1 | B42: -40C | C42: Flash | D42: 80 MHz | E42: 7.5 | F42: mA | H42: UART2 | I42: 57600 | L42: 0.2989 | M42: mA
A43: Run 1 | B43: 25C | C43: Flash | D43: 80 MHz | E43: 7.6 | F43: mA | H43: UART2 | I43: 115200 | L43: 0.3353 | M43: mA
A44: Run 1 | B44: 85C | C44: Flash | D44: 80 MHz | E44: 8 | F44: mA | H44: UART3 | I44: 9600 | L44: 0.26995 | M44: mA
A45: Run 1 | B45: 105C | C45: Flash | D45: 80 MHz | E45: 8 | F45: mA | H45: UART3 | I45: 19200 | L45: 0.27435 | M45: mA
A46: Run 1 | B46: 125C | C46: Flash | D46: 80 MHz | E46: 8.6 | F46: mA | H46: UART3 | I46: 57600 | L46: 0.2989 | M46: mA
A47: Run 1 | B47: -40C | C47: Flash | D47: 48 MHz | E47: 4.8 | F47: mA | H47: UART3 | I47: 115200 | L47: 0.3353 | M47: mA
A48: Run 1 | B48: 25C | C48: Flash | D48: 48 MHz | E48: 4.9 | F48: mA | H48: MCAN0
A49: Run 1 | B49: 85C | C49: Flash | D49: 48 MHz | E49: 5.1 | F49: mA | H49: ADC0 | I49: 2 | J49: 8 | K49: Vref used for power | L49: 1.227765 | M49: mA
A50: Run 1 | B50: 105C | C50: Flash | D50: 48 MHz | E50: 5.2 | F50: mA | H50: ADC0 | I50: 2 | J50: 4 | L50: 1.355645 | M50: mA
A51: Run 1 | B51: 125C | C51: Flash | D51: 48 MHz | E51: 5.7 | F51: mA | H51: ADC0 | I51: 2 | J51: 2 | L51: 1.253095 | M51: mA
A52: Run 1 | B52: -40C | C52: Flash | D52: 32 MHz | E52: 3.3 | F52: mA | H52: ADC0 | I52: 2 | J52: 1 | L52: 1.496518333 | M52: mA
A53: Run 1 | B53: 25C | C53: Flash | D53: 32 MHz | E53: 3.4 | F53: mA | H53: ADC0 | I53: 3 | J53: 1 | L53: 1.403951667 | M53: mA
A54: Run 1 | B54: 85C | C54: Flash | D54: 32 MHz | E54: 3.7 | F54: mA | H54: ADC0 | I54: 7 | J54: 1 | L54: 1.579635 | M54: mA
A55: Run 1 | B55: 105C | C55: Flash | D55: 32 MHz | E55: 3.7 | F55: mA | H55: ADC0 | I55: 15 | J55: 1 | L55: 1.651876667 | M55: mA
A56: Run 1 | B56: 125C | C56: Flash | D56: 32 MHz | E56: 4.1 | F56: mA | H56: ADC1 | I56: 2 | J56: 8 | L56: 1.227765 | M56: mA
A57: Run 1 | B57: -40C | C57: Flash | D57: 4 MHz | E57: 0.6 | F57: mA | H57: ADC1 | I57: 2 | J57: 4 | L57: 1.355645 | M57: mA
A58: Run 1 | B58: 25C | C58: Flash | D58: 4 MHz | E58: 0.7 | F58: mA | H58: ADC1 | I58: 2 | J58: 2 | L58: 1.253095 | M58: mA
A59: Run 1 | B59: 85C | C59: Flash | D59: 4 MHz | E59: 0.8 | F59: mA | H59: ADC1 | I59: 2 | J59: 1 | L59: 1.496518333 | M59: mA
A60: Run 1 | B60: 105C | C60: Flash | D60: 4 MHz | E60: 1 | F60: mA | H60: ADC1 | I60: 3 | J60: 1 | L60: 1.403951667 | M60: mA
A61: Run 1 | B61: 125C | C61: Flash | D61: 4 MHz | E61: 1.4 | F61: mA | H61: ADC1 | I61: 7 | J61: 1 | L61: 1.579635 | M61: mA
A62: Run 1 | B62: -40C | C62: SRAM | D62: 80 MHz | E62: 5.9 | F62: mA | H62: ADC1 | I62: 15 | J62: 1 | L62: 1.651876667 | M62: mA
A63: Run 1 | B63: 25C | C63: SRAM | D63: 80 MHz | E63: 6 | F63: mA | H63: DAC0 | I63: 2.5V Internal | J63: 2.5 | L63: 0.543 | M63: mA
A64: Run 1 | B64: 85C | C64: SRAM | D64: 80 MHz | E64: 6.3 | F64: mA | H64: DAC0 | I64: 2.5V Internal | J64: 2 | L64: 0.558 | M64: mA
A65: Run 1 | B65: 105C | C65: SRAM | D65: 80 MHz | E65: 6.4 | F65: mA | H65: DAC0 | I65: 2.5V Internal | J65: 1.5 | L65: 0.538 | M65: mA
A66: Run 1 | B66: 125C | C66: SRAM | D66: 80 MHz | E66: 6.8 | F66: mA | H66: DAC0 | I66: 2.5V Internal | J66: 1 | L66: 0.487 | M66: mA
A67: Run 1 | B67: -40C | C67: SRAM | D67: 48 MHz | E67: 3.7 | F67: mA | H67: DAC0 | I67: 2.5V Internal | J67: 0.5 | L67: 0.467 | M67: mA
A68: Run 1 | B68: 25C | C68: SRAM | D68: 48 MHz | E68: 3.8 | F68: mA | H68: DAC0 | I68: 1.4V Internal | J68: 1.4 | L68: 0.5443 | M68: mA
A69: Run 1 | B69: 85C | C69: SRAM | D69: 48 MHz | E69: 3.8 | F69: mA | H69: DAC0 | I69: 1.4V Internal | J69: 1.2 | L69: 0.4963 | M69: mA
A70: Run 1 | B70: 105C | C70: SRAM | D70: 48 MHz | E70: 4.5 | F70: mA | H70: DAC0 | I70: 1.4V Internal | J70: 1 | L70: 0.4783 | M70: mA
A71: Run 1 | B71: 125C | C71: SRAM | D71: 48 MHz | E71: 5 | F71: mA | H71: DAC0 | I71: 1.4V Internal | J71: 0.8 | L71: 0.4302 | M71: mA
A72: Run 1 | B72: -40C | C72: SRAM | D72: 32 MHz | E72: 2.5 | F72: mA | H72: DAC0 | I72: 1.4V Internal | J72: 0.6 | L72: 0.5013 | M72: mA
A73: Run 1 | B73: 25C | C73: SRAM | D73: 32 MHz | E73: 2.6 | F73: mA | H73: DAC0 | I73: 1.4V Internal | J73: 0.4 | L73: 0.4523 | M73: mA
A74: Run 1 | B74: 85C | C74: SRAM | D74: 32 MHz | E74: 2.7 | F74: mA | H74: DAC0 | I74: 1.4V Internal | J74: 0.2 | L74: 0.4376 | M74: mA
A75: Run 1 | B75: 105C | C75: SRAM | D75: 32 MHz | E75: 3 | F75: mA | H75: OPA0 | I75: RRI = 0x0, GBW = 0x0 | L75: 0.094 | M75: mA
A76: Run 1 | B76: 125C | C76: SRAM | D76: 32 MHz | E76: 3.4 | F76: mA | H76: OPA0 | I76: RRI = 0x0, GBW = 0x01 | L76: 0.319 | M76: mA
A77: Run 1 | B77: -40C | C77: SRAM | D77: 4 MHz | E77: 0.6 | F77: mA | H77: OPA0 | I77: RRI = 0x1, GBW = 0x0 | L77: 0.116 | M77: mA
A78: Run 1 | B78: 25C | C78: SRAM | D78: 4 MHz | E78: 0.6 | F78: mA | H78: OPA0 | I78: RRI = 0x1, GBW = 0x01 | L78: 0.401 | M78: mA
A79: Run 1 | B79: 85C | C79: SRAM | D79: 4 MHz | E79: 0.8 | F79: mA | H79: OPA1 | I79: RRI = 0x0, GBW = 0x0 | L79: 0.094 | M79: mA
A80: Run 1 | B80: 105C | C80: SRAM | D80: 4 MHz | E80: 0.9 | F80: mA | H80: OPA1 | I80: RRI = 0x0, GBW = 0x01 | L80: 0.319 | M80: mA
A81: Run 1 | B81: 125C | C81: SRAM | D81: 4 MHz | E81: 1 | F81: mA | H81: OPA1 | I81: RRI = 0x1, GBW = 0x0 | L81: 0.116 | M81: mA
A82: Run 2 | B82: -40C | C82: Flash | D82: 80 MHz | E82: 7.5 | F82: mA | H82: OPA1 | I82: RRI = 0x1, GBW = 0x01 | L82: 0.401 | M82: mA
A83: Run 2 | B83: 25C | C83: Flash | D83: 80 MHz | E83: 7.6 | F83: mA | H83: GPAMP | I83: 0x00 | L83: 0.097 | M83: mA
A84: Run 2 | B84: 85C | C84: Flash | D84: 80 MHz | E84: 8 | F84: mA | H84: GPAMP | I84: 0x01 or 0x02 | L84: 0.093 | M84: mA
A85: Run 2 | B85: 105C | C85: Flash | D85: 80 MHz | E85: 8 | F85: mA | H85: COMP0 | I85: High Speed Mode w/DAC | L85: 130 | M85: uA
A86: Run 2 | B86: 125C | C86: Flash | D86: 80 MHz | E86: 8.6 | F86: mA | H86: COMP0 | I86: Low Power Mode w/DAC | L86: 0.84 | M86: uA
A87: Run 2 | B87: -40C | C87: Flash | D87: 48 MHz | E87: 4.8 | F87: mA | H87: COMP0 | I87: High Speed Mode Comp Only | L87: 102 | M87: uA
A88: Run 2 | B88: 25C | C88: Flash | D88: 48 MHz | E88: 4.9 | F88: mA | H88: COMP0 | I88: Low Power Mode Comp Only | L88: 0.7 | M88: uA
A89: Run 2 | B89: 85C | C89: Flash | D89: 48 MHz | E89: 5.1 | F89: mA | H89: COMP1 | I89: High Speed Mode w/DAC | L89: 130 | M89: uA
A90: Run 2 | B90: 105C | C90: Flash | D90: 48 MHz | E90: 5.2 | F90: mA | H90: COMP1 | I90: Low Power Mode w/DAC | L90: 0.84 | M90: uA
A91: Run 2 | B91: 125C | C91: Flash | D91: 48 MHz | E91: 5.7 | F91: mA | H91: COMP1 | I91: High Speed Mode Comp Only | L91: 102 | M91: uA
A92: Run 2 | B92: -40C | C92: Flash | D92: 32 MHz | E92: 3.3 | F92: mA | H92: COMP1 | I92: Low Power Mode Comp Only | L92: 0.7 | M92: uA
A93: Run 2 | B93: 25C | C93: Flash | D93: 32 MHz | E93: 3.4 | F93: mA | H93: COMP2 | I93: High Speed Mode w/DAC | L93: 130 | M93: uA
A94: Run 2 | B94: 85C | C94: Flash | D94: 32 MHz | E94: 3.7 | F94: mA | H94: COMP2 | I94: Low Power Mode w/DAC | L94: 0.84 | M94: uA
A95: Run 2 | B95: 105C | C95: Flash | D95: 32 MHz | E95: 3.7 | F95: mA | H95: COMP2 | I95: High Speed Mode Comp Only | L95: 102 | M95: uA
A96: Run 2 | B96: 125C | C96: Flash | D96: 32 MHz | E96: 4.1 | F96: mA | H96: COMP2 | I96: Low Power Mode Comp Only | L96: 0.7 | M96: uA
A97: Run 2 | B97: -40C | C97: Flash | D97: 4 MHz | E97: 0.6 | F97: mA | H97: TIMA0 | I97: Capture/Compare | L97: 0.097 | M97: mA
A98: Run 2 | B98: 25C | C98: Flash | D98: 4 MHz | E98: 0.7 | F98: mA | H98: TIMA0 | I98: PWM | L98: 0.227 | M98: mA
A99: Run 2 | B99: 85C | C99: Flash | D99: 4 MHz | E99: 0.8 | F99: mA | H99: TIMA1 | I99: Capture/Compare | L99: 0.097 | M99: mA
A100: Run 2 | B100: 105C | C100: Flash | D100: 4 MHz | E100: 1 | F100: mA | H100: TIMA1 | I100: PWM | L100: 0.227 | M100: mA
A101: Run 2 | B101: 125C | C101: Flash | D101: 4 MHz | E101: 1.4 | F101: mA | H101: TIMG0 | I101: Capture/Compare | L101: 0.097 | M101: mA
A102: Run 2 | B102: -40C | C102: SRAM | D102: 80 MHz | E102: 5.9 | F102: mA | H102: TIMG0 | I102: PWM | L102: 0.4476 | M102: mA
A103: Run 2 | B103: 25C | C103: SRAM | D103: 80 MHz | E103: 6 | F103: mA | H103: TIMG1 | I103: Capture/Compare | L103: 0.097 | M103: mA
A104: Run 2 | B104: 85C | C104: SRAM | D104: 80 MHz | E104: 6.3 | F104: mA | H104: TIMG1 | I104: PWM | L104: 0.4476 | M104: mA
A105: Run 2 | B105: 105C | C105: SRAM | D105: 80 MHz | E105: 6.4 | F105: mA | H105: TIMG6 | I105: Capture/Compare | L105: 0.097 | M105: mA
A106: Run 2 | B106: 125C | C106: SRAM | D106: 80 MHz | E106: 6.8 | F106: mA | H106: TIMG6 | I106: PWM | L106: 0.4476 | M106: mA
A107: Run 2 | B107: -40C | C107: SRAM | D107: 48 MHz | E107: 3.7 | F107: mA | H107: TIMG7 | I107: Capture/Compare | L107: 0.097 | M107: mA
A108: Run 2 | B108: 25C | C108: SRAM | D108: 48 MHz | E108: 3.8 | F108: mA | H108: TIMG7 | I108: PWM | L108: 0.4476 | M108: mA
A109: Run 2 | B109: 85C | C109: SRAM | D109: 48 MHz | E109: 3.8 | F109: mA | H109: TIMG8 | I109: Capture/Compare | L109: 0.097 | M109: mA
A110: Run 2 | B110: 105C | C110: SRAM | D110: 48 MHz | E110: 4.5 | F110: mA | H110: TIMG8 | I110: PWM | L110: 0.4476 | M110: mA
A111: Run 2 | B111: 125C | C111: SRAM | D111: 48 MHz | E111: 5 | F111: mA | H111: TIMG12 | I111: Capture/Compare | L111: 0.097 | M111: mA
A112: Run 2 | B112: -40C | C112: SRAM | D112: 32 MHz | E112: 2.5 | F112: mA | H112: TIMG12 | I112: PWM | L112: 0.4476 | M112: mA
A113: Run 2 | B113: 25C | C113: SRAM | D113: 32 MHz | E113: 2.6 | F113: mA | H113: HFXT | I113: 4MHz | L113: 75 | M113: uA
A114: Run 2 | B114: 85C | C114: SRAM | D114: 32 MHz | E114: 2.7 | F114: mA | H114: HFXT | I114: 48MHz | L114: 600 | M114: uA
A115: Run 2 | B115: 105C | C115: SRAM | D115: 32 MHz | E115: 3 | F115: mA | H115: GPIOA
A116: Run 2 | B116: 125C | C116: SRAM | D116: 32 MHz | E116: 3.4 | F116: mA
A117: Run 2 | B117: -40C | C117: SRAM | D117: 4 MHz | E117: 0.6 | F117: mA
A118: Run 2 | B118: 25C | C118: SRAM | D118: 4 MHz | E118: 0.6 | F118: mA | H118: GPIOB
A119: Run 2 | B119: 85C | C119: SRAM | D119: 4 MHz | E119: 0.8 | F119: mA
A120: Run 2 | B120: 105C | C120: SRAM | D120: 4 MHz | E120: 0.9 | F120: mA
A121: Run 2 | B121: 125C | C121: SRAM | D121: 4 MHz | E121: 1 | F121: mA
A122: Sleep 0 | B122: -40C | C122: SYSPLL | D122: 80 MHz | E122: 2.974 | F122: mA
A123: Sleep 0 | B123: 25C | C123: SYSPLL | D123: 80 MHz | E123: 3.039 | F123: mA
A124: Sleep 0 | B124: 85C | C124: SYSPLL | D124: 80 MHz | E124: 3.262 | F124: mA
A125: Sleep 0 | B125: 105C | C125: SYSPLL | D125: 80 MHz | E125: 3.35 | F125: mA
A126: Sleep 0 | B126: 125C | C126: SYSPLL | D126: 80 MHz | E126: 3.439 | F126: mA
A127: Sleep 0 | B127: -40C | C127: SYSPLL | D127: 48 MHz | E127: 2.025 | F127: mA
A128: Sleep 0 | B128: 25C | C128: SYSPLL | D128: 48 MHz | E128: 2.075 | F128: mA
A129: Sleep 0 | B129: 85C | C129: SYSPLL | D129: 48 MHz | E129: 2.262 | F129: mA
A130: Sleep 0 | B130: 105C | C130: SYSPLL | D130: 48 MHz | E130: 2.337 | F130: mA
A131: Sleep 0 | B131: 125C | C131: SYSPLL | D131: 48 MHz | E131: 2.778 | F131: mA
A132: Sleep 0 | B132: -40C | C132: SYSOSC | D132: 32 MHz | E132: 1.355 | F132: mA
A133: Sleep 0 | B133: 25C | C133: SYSOSC | D133: 32 MHz | E133: 1.399 | F133: mA
A134: Sleep 0 | B134: 85C | C134: SYSOSC | D134: 32 MHz | E134: 1.567 | F134: mA
A135: Sleep 0 | B135: 105C | C135: SYSOSC | D135: 32 MHz | E135: 1.675 | F135: mA
A136: Sleep 0 | B136: 125C | C136: SYSOSC | D136: 32 MHz | E136: 2.094 | F136: mA
A137: Sleep 0 | B137: -40C | C137: SYSOSC | D137: 4 MHz | E137: 440 | F137: uA
A138: Sleep 0 | B138: 25C | C138: SYSOSC | D138: 4 MHz | E138: 467 | F138: uA
A139: Sleep 0 | B139: 85C | C139: SYSOSC | D139: 4 MHz | E139: 662 | F139: uA
A140: Sleep 0 | B140: 105C | C140: SYSOSC | D140: 4 MHz | E140: 737 | F140: uA
A141: Sleep 0 | B141: 125C | C141: SYSOSC | D141: 4 MHz | E141: 1.14 | F141: mA
A142: Sleep 1 | B142: -40C | C142: SYSPLL | D142: 80 MHz | E142: 2.974 | F142: mA
A143: Sleep 1 | B143: 25C | C143: SYSPLL | D143: 80 MHz | E143: 3.039 | F143: mA
A144: Sleep 1 | B144: 85C | C144: SYSPLL | D144: 80 MHz | E144: 3.262 | F144: mA
A145: Sleep 1 | B145: 105C | C145: SYSPLL | D145: 80 MHz | E145: 3.35 | F145: mA
A146: Sleep 1 | B146: 125C | C146: SYSPLL | D146: 80 MHz | E146: 3.439 | F146: mA
A147: Sleep 1 | B147: -40C | C147: SYSPLL | D147: 48 MHz | E147: 2.025 | F147: mA
A148: Sleep 1 | B148: 25C | C148: SYSPLL | D148: 48 MHz | E148: 2.075 | F148: mA
A149: Sleep 1 | B149: 85C | C149: SYSPLL | D149: 48 MHz | E149: 2.262 | F149: mA
A150: Sleep 1 | B150: 105C | C150: SYSPLL | D150: 48 MHz | E150: 2.337 | F150: mA
A151: Sleep 1 | B151: 125C | C151: SYSPLL | D151: 48 MHz | E151: 2.778 | F151: mA
A152: Sleep 1 | B152: -40C | C152: SYSOSC | D152: 32 MHz | E152: 1.355 | F152: mA
A153: Sleep 1 | B153: 25C | C153: SYSOSC | D153: 32 MHz | E153: 1.399 | F153: mA
A154: Sleep 1 | B154: 85C | C154: SYSOSC | D154: 32 MHz | E154: 1.567 | F154: mA
A155: Sleep 1 | B155: 105C | C155: SYSOSC | D155: 32 MHz | E155: 1.675 | F155: mA
A156: Sleep 1 | B156: 125C | C156: SYSOSC | D156: 32 MHz | E156: 2.094 | F156: mA
A157: Sleep 1 | B157: -40C | C157: SYSOSC | D157: 4 MHz | E157: 440 | F157: uA
A158: Sleep 1 | B158: 25C | C158: SYSOSC | D158: 4 MHz | E158: 467 | F158: uA
A159: Sleep 1 | B159: 85C | C159: SYSOSC | D159: 4 MHz | E159: 662 | F159: uA
A160: Sleep 1 | B160: 105C | C160: SYSOSC | D160: 4 MHz | E160: 737 | F160: uA
A161: Sleep 1 | B161: 125C | C161: SYSOSC | D161: 4 MHz | E161: 1.14 | F161: mA
A162: Sleep 2 | B162: -40C | C162: SYSPLL | D162: 80 MHz | E162: 2.974 | F162: mA
A163: Sleep 2 | B163: 25C | C163: SYSPLL | D163: 80 MHz | E163: 3.039 | F163: mA
A164: Sleep 2 | B164: 85C | C164: SYSPLL | D164: 80 MHz | E164: 3.262 | F164: mA
A165: Sleep 2 | B165: 105C | C165: SYSPLL | D165: 80 MHz | E165: 3.35 | F165: mA
A166: Sleep 2 | B166: 125C | C166: SYSPLL | D166: 80 MHz | E166: 3.439 | F166: mA
A167: Sleep 2 | B167: -40C | C167: SYSPLL | D167: 48 MHz | E167: 2.025 | F167: mA
A168: Sleep 2 | B168: 25C | C168: SYSPLL | D168: 48 MHz | E168: 2.075 | F168: mA
A169: Sleep 2 | B169: 85C | C169: SYSPLL | D169: 48 MHz | E169: 2.262 | F169: mA
A170: Sleep 2 | B170: 105C | C170: SYSPLL | D170: 48 MHz | E170: 2.337 | F170: mA
A171: Sleep 2 | B171: 125C | C171: SYSPLL | D171: 48 MHz | E171: 2.778 | F171: mA
A172: Sleep 2 | B172: -40C | C172: SYSOSC | D172: 32 MHz | E172: 1.355 | F172: mA
A173: Sleep 2 | B173: 25C | C173: SYSOSC | D173: 32 MHz | E173: 1.399 | F173: mA
A174: Sleep 2 | B174: 85C | C174: SYSOSC | D174: 32 MHz | E174: 1.567 | F174: mA
A175: Sleep 2 | B175: 105C | C175: SYSOSC | D175: 32 MHz | E175: 1.675 | F175: mA
A176: Sleep 2 | B176: 125C | C176: SYSOSC | D176: 32 MHz | E176: 2.094 | F176: mA
A177: Sleep 2 | B177: -40C | C177: SYSOSC | D177: 4 MHz | E177: 440 | F177: uA
A178: Sleep 2 | B178: 25C | C178: SYSOSC | D178: 4 MHz | E178: 467 | F178: uA
A179: Sleep 2 | B179: 85C | C179: SYSOSC | D179: 4 MHz | E179: 662 | F179: uA
A180: Sleep 2 | B180: 105C | C180: SYSOSC | D180: 4 MHz | E180: 737 | F180: uA
A181: Sleep 2 | B181: 125C | C181: SYSOSC | D181: 4 MHz | E181: 1.14 | F181: mA
A182: Stop 0 | B182: -40C | C182: ULPCLK | D182: 4 MHz | E182: 331 | F182: uA
A183: Stop 0 | B183: 25C | C183: ULPCLK | D183: 4 MHz | E183: 338 | F183: uA
A184: Stop 0 | B184: 85C | C184: ULPCLK | D184: 4 MHz | E184: 343 | F184: uA
A185: Stop 0 | B185: 105C | C185: ULPCLK | D185: 4 MHz | E185: 346 | F185: uA
A186: Stop 0 | B186: 125C | C186: ULPCLK | D186: 4 MHz | E186: 357 | F186: uA
A187: Stop 1 | B187: -40C | C187: ULPCLK | D187: 4 MHz | E187: 174 | F187: uA
A188: Stop 1 | B188: 25C | C188: ULPCLK | D188: 4 MHz | E188: 179 | F188: uA
A189: Stop 1 | B189: 85C | C189: ULPCLK | D189: 4 MHz | E189: 185 | F189: uA
A190: Stop 1 | B190: 105C | C190: ULPCLK | D190: 4 MHz | E190: 188 | F190: uA
A191: Stop 1 | B191: 125C | C191: ULPCLK | D191: 4 MHz | E191: 198 | F191: uA
A192: Stop 2 | B192: -40C | C192: LFCLK | D192: 32 kHz | E192: 44 | F192: uA
A193: Stop 2 | B193: 25C | C193: LFCLK | D193: 32 kHz | E193: 46 | F193: uA
A194: Stop 2 | B194: 85C | C194: LFCLK | D194: 32 kHz | E194: 51 | F194: uA
A195: Stop 2 | B195: 105C | C195: LFCLK | D195: 32 kHz | E195: 53 | F195: uA
A196: Stop 2 | B196: 125C | C196: LFCLK | D196: 32 kHz | E196: 62 | F196: uA
A197: Standby 0 | B197: -40C | C197: LFOSC | D197: 32 kHz | E197: 2 | F197: uA
A198: Standby 0 | B198: 25C | C198: LFOSC | D198: 32 kHz | E198: 2 | F198: uA
A199: Standby 0 | B199: 85C | C199: LFOSC | D199: 32 kHz | E199: 4 | F199: uA
A200: Standby 0 | B200: 105C | C200: LFOSC | D200: 32 kHz | E200: 7 | F200: uA
... 20 more rows

Sheet Power Data (hidden)
A1: Supply Current Characteristics
A2: IDD(RUN) | B2: Parameter | C2: MCLK | D2: -40C | E2: 25C | F2: 85C | G2: 105C | H2: 125C | I2: mA
B3: MCLK=SYSPLL, SYSPLLREF=SYSOSC, CoreMark, execute from flash | C3: 80 MHz | D3: 7.5 | E3: 7.6 | F3: 8 | G3: 8 | H3: 8.6
C4: 48 MHz | D4: 4.8 | E4: 4.9 | F4: 5.1 | G4: 5.2 | H4: 5.7
B5: MCLK=SYSOSC, CoreMark, execute from flash | C5: 32 MHz | D5: 3.3 | E5: 3.4 | F5: 3.7 | G5: 3.7 | H5: 4.1
C6: 4 MHz | D6: 0.6 | E6: 0.7 | F6: 0.8 | G6: 1 | H6: 1.4
B7: MCLK=SYSPLL, SYSPLLREF=SYSOSC, CoreMark, execute from SRAM | C7: 80 MHz | D7: 5.9 | E7: 6 | F7: 6.3 | G7: 6.4 | H7: 6.8
C8: 48 MHz | D8: 3.7 | E8: 3.8 | F8: 3.8 | G8: 4.5 | H8: 5
B9: MCLK=SYSOSC, CoreMark, execute from SRAM | C9: 32 MHz | D9: 2.5 | E9: 2.6 | F9: 2.7 | G9: 3 | H9: 3.4
C10: 4 MHz | D10: 0.6 | E10: 0.6 | F10: 0.8 | G10: 0.9 | H10: 1
A12: IDD(RUN) per MHZ | B12: Parameter | C12: MCLK | D12: -40C | E12: 25C | F12: 85C | G12: 105C | H12: 125C | I12: μA/MHz
B13: MCLK=SYSPLL, SYSPLLREF=SYSOSC, CoreMark, execute from flash | C13: 80MHz | D13: 94 | E13: 96 | F13: 99 | G13: 100 | H13: 107
B14: MCLK=SYSPLL, SYSPLLREF=SYSOSC, While(1), execute from flash | C14: 80MHz | D14: 52 | E14: 53 | F14: 55 | G14: 57 | H14: 64
A16: IDD(Sleep) | B16: Parameter | C16: MCLK | D16: -40C | E16: 25C | F16: 85C | G16: 105C | H16: 125C | I16: uA
B17: MCLK=SYSPLL, SYSPLLREF=SYSOSC, CPU is halted | C17: 80MHz | D17: 2974 | E17: 3039 | F17: 3262 | G17: 3350 | H17: 3439
C18: 48MHz | D18: 2025 | E18: 2075 | F18: 2262 | G18: 2337 | H18: 2778
B19: MCLK=SYSOSC, CPU is halted | C19: 32MHz | D19: 1355 | E19: 1399 | F19: 1567 | G19: 1675 | H19: 2094
C20: 4MHz | D20: 440 | E20: 467 | F20: 662 | G20: 737 | H20: 1140
A22: IDD(Stop0) | B22: Parameter | C22: ULPCLK | D22: -40C | E22: 25C | F22: 85C | G22: 105C | H22: 125C | I22: uA
B23: SYSOSC=32MHz, USE4MHZSTOP=0, DISABLESTOP=0 | C23: 4MHz | D23: 331 | E23: 338 | F23: 343 | G23: 346 | H23: 357
A24: IDD(Stop1) | B24: SYSOSC=4MHz, USE4MHZSTOP=1, DISABLESTOP=0 | D24: 174 | E24: 179 | F24: 185 | G24: 188 | H24: 198
A25: IDD(Stop2) | B25: SYSOSC off, DISABLESTOP=1, ULPCLK=LFCLK | C25: 32kHz | D25: 44 | E25: 46 | F25: 51 | G25: 53 | H25: 62
B27: Parameter | C27: ULPCLK | D27: -40C | E27: 25C | F27: 85C | G27: 105C | H27: 125C | I27: uA
A28: IDD(STBY0) | B28: LFCLK=LFXT, STOPCLKSTBY=0, RTC enabled | C28: 32kHz | D28: 2 | E28: 2 | F28: 4 | G28: 7 | H28: 16
A29: IDD(STBY1) | B29: LFCLK=LFOSC, STOPCLKSTBY=1, RTC enabled | D29: 1.4 | E29: 1.5 | F29: 3 | G29: 6 | H29: 13
B30: LFCLK=LFXT, STOPCLKSTBY=1, RTC enabled | D30: 1.4 | E30: 1.5 | F30: 4 | G30: 6 | H30: 13
B31: LFCLK=LFXT, STOPCLKSTBY=1, GPIOA enabled | D31: 1.4 | E31: 1.5 | F31: 4 | G31: 6 | H31: 13
B33: Parameter | C33: VDD | D33: -40C | E33: 25C | F33: 85C | G33: 105C | H33: 125C | I33: nA
A34: IDD(SHDN) | B34: Supply current in SHUTDOWN mode | C34: 3.3 | D34: 40 | E34: 80 | F34: 730 | G34: 1730 | H34: 4800
A36: Flash Memory Characteristics
B37: Parameter | C37: Value | D37: Unit
A38: VDD(PGM/Erase) | B38: Program and erase supply voltage | C38: 3.3 | D38: V
A39: IDD(ERASE) | B39: Supply current from VDD during erase operation | C39: 10 | D39: mA
A40: IDD(PGM) | B40: Supply current from VDD during program operation | C40: 10 | D40: mA
A42: Clocking
A43: LFOSC Characteristics
A44: I(LFOSC) | B44: Current Consumption | C44: 300 | D44: nA
A45: SYSPLL Characteristics
A46: I(SYSPLL) | B46: Current Consumption | C46: 316 | D46: uA
A47: Low Frequency Crystal/Clock
A48: I(LFXT) | B48: Current Consumption | C48: 200 | D48: nA
A49: High Frequency Crystal/Clock
A50: I(HFXT) | B50: F(HFXT)=4MHZ, R(M)300ohm, C(L)12pF | C50: 75 | D50: uA
B51: F(HFXT)=48MHZ, R(M)30ohm, C(L)12pF,C(M)=6.26fF, L(M)=1.76mH | C51: 600 | D51: uA
A52: SYSOSC
A53: ISYSOSC | B53: fSYSOSC=4MHz | C53: 20 | D53: uA
B54: fSYSOSC=32MHz | C54: 80 | D54: uA
B55: fSYSOSC=32MHz, SETUSEFCL=1 (1) | C55: 90 | D55: uA
B56: Time from SYSOSC request to first SYSOSC edge on MCLK, device in RUN or SLEEP mode with MCLK=LFCLK | C56: 2 | D56: uA
B57: SETUSEFCL=1, SYSOSCCFG.FREQ=00, -40 ℃ ≤ Tj ≤ 30℃ | C57: 27.6 | D57: uA
A59: Analog MUX VBOOST
A60: Parameter | C60: Test Conditions | E60: Value | F60: Units
A61: I(VBST) | B61: VBOOST current adder | C61: MCLK/ULPCLK is not LFCLK, SYSOSC frequency is 4MHz | E61: 0.7 | F61: uA
C62: MCLK/ULPCLK is LFCLK | E62: 10.6
A64: ADC Characteristics
A65: Parameter | C65: Test Condition | E65: Value | F65: Units
A66: I(ADC) | B66: Operating supply current into VDD terminal | C66: FS = 4MSPS, VR+ = VDD | E66: 1.75 | F66: mA | G66: current versus throughput | I66: will get this at a later time
A67: ISupplyMon | B67: Supply Monitor voltage divider current consumption | C67: ADC input channel: Supply Monitor | E67: 0.01 | F67: uA
A68: IVREF | B68: VREF operating supply current(this spec is an estimation and will be more reliable once the IP is further in the design phase) | C68: BUFCONFIG = {0, 1}, No load | D68: BUFCONFIG = {0, 1}, No load | E68: 0.166 | F68: µA
A70: VREF Characteristics
A71: Parameter | C71: Test Conditions | E71: Value | F71: Units
A72: VREF | B72: Voltage reference output voltage | C72: BUFCONFIG = 1 | E72: 1.4 | F72: V
C73: BUFCONFIG = 0 | E73: 2.5 | F73: V
A74: IVREF | B74: VREF operating supply current | C74: BUFCONFIG = {0, 1}, No load | E74: 166 | F74: uA
A76: Comparator Characteristics
A77: Parameter | B77: Test Conditions | C77: Value | D77: Units
A78: Icomp | B78: Vcm = VDD/2, 100mV overdrive, DAC output as a voltage reference, VDD is reference for DAC, High Speed Mode | C78: 130 | D78: uA
B79: Vcm = VDD/2, 100mV overdrive, DAC output as a voltage reference, VDD is reference for DAC, Low Power Mode | C79: 0.84 | D79: uA
B80: Vcm = VDD/2, 100mV overdrive, comparator only. High Speed Mode | C80: 102 | D80: uA
B81: Vcm = VDD/2, 100mV overdrive, comparator only, Low Power Mode | C81: 0.7 | D81: uA
A82: Vdac | C82: VDD | D82: V
A83: Vdac-code | B83: VIN = reference voltage into 8-bit DAC, code n = 0 to 255 | C83: VIN x (n+1)/256 | D83: V
A85: DAC Characteristics | F85: DAC
A86: Parameter | B86: Test Conditions | C86: Value | D86: Units | F86: VREF Source | G86: Output Value | H86: Current Consumption | I86: Baseline | J86: DAC Current Consumption
A87: VREF | B87: External | C87: ='Subsystem Inputs'!B5 -> 3.3 | D87: V | F87: 2.5V Internal | G87: 2.5 | H87: 2.769 | I87: 2.226 | J87: =H87-I87 -> 0.543
A88: VREF | B88: Internal(1.4V, 2.5V) | C88: VDD | D88: V | F88: 2.5V Internal | G88: 2 | H88: 2.784 | I88: 2.226 | J88: =H88-I88 -> 0.558
A89: IDAC | B89: VREF= VDD, No load | C89: 300 | D89: uA | F89: 2.5V Internal | G89: 1.5 | H89: 2.764 | I89: 2.226 | J89: 0.538
F90: 2.5V Internal | G90: 1 | H90: 2.713 | I90: 2.226 | J90: 0.487
A91: DAC Output Specifications | F91: 2.5V Internal | G91: 0.5 | H91: 2.693 | I91: 2.226 | J91: 0.467
A92: Parameter | B92: Test Conditions | C92: Value | D92: Units | F92: 1.4V Internal | G92: 1.4 | H92: 2.7703 | I92: 2.226 | J92: 0.5443
A93: VO | B93: No load, Vref = VDD, DATA = 0x0 | C93: 20 | D93: mV | F93: 1.4V Internal | G93: 1.2 | H93: 2.7223 | I93: 2.226 | J93: 0.4963
B94: No load, Vref = VDD, DATA = 0xFFF | C94: VDD-0.01 | D94: V | F94: 1.4V Internal | G94: 1 | H94: 2.7043 | I94: 2.226 | J94: 0.4783
B95: Rload = 3.3kΩ, Vref = VDD, DATA = 0x0 | C95: 0.13 | D95: V | F95: 1.4V Internal | G95: 0.8 | H95: 2.6562 | I95: 2.226 | J95: 0.4302
B96: Rload = 3.3kΩ, Vref = VDD, DATA = 0xFFF | C96: VDD-0.01 | D96: V | F96: 1.4V Internal | G96: 0.6 | H96: 2.7273 | I96: 2.226 | J96: 0.5013
A97: IL(DAC) | C97: 1 | D97: mA | F97: 1.4V Internal | G97: 0.4 | H97: 2.6783 | I97: 2.226 | J97: 0.4523
A98: ROUT(DAC) | B98: Rload = 3.3kΩ, Vref = VDD | C98: 1.2 | D98: Ohm | F98: 1.4V Internal | G98: 0.2 | H98: 2.6636 | I98: 2.226 | J98: 0.4376
J99: 80uA for VREF
A100: GPAMP Characteristics
A101: Parameter | B101: Test Conditions | C101: Value | D101: Units | F101: Current numbers do not change in different power modes
A102: Iq | B102: IO= 0 mA, RRI = 0x0 | C102: 0.097 | D102: mA | F102: Baseline number based on power domain (above) + peripheral current
B103: IO= 0 mA, RRI = 0x1 or 0x2 | C103: 0.093 | D103: mA
A105: OPA Characteristics
A106: Parameter | B106: Test Conditions | C106: Value | D106: Units
A107: Iq | B107: IO= 0mA, RRI = 0x0, GBW = 0x0 | C107: 0.094 | D107: mA | E107: DAC considerations
B108: IO= 0mA, RRI = 0x0, GBW = 0x01 | C108: 0.319 | D108: mA
B109: IO= 0mA, RRI = 0x1, GBW = 0x0 | C109: 0.116 | D109: mA
B110: IO= 0mA, RRI = 0x1, GBW = 0x01 | C110: 0.401 | D110: mA
A112: TRNG
A113: Parameter | B113: Test Conditions | C113: Value | D113: Units
A114: TRNGIACT | B114: TRNG clock = 20MHz | C114: 115 | D114: uA
A115: TRNGSUPPLY | B115: TRNG supply input voltage | C115: VDD | D115: V
A117: Digital IO Characteristics
A118: Parameter | B118: Test Conditions | C118: Value | D118: Units
A119: V(OH) @ IO(MAX) | B119: SDIO [VDD, IO(MAX), T]
B120: HSIO [VDD, IO(MAX), T]
B121: HDIO [VDD, IO(MAX), T]
A122: V(OL) @ IO(MAX) | B122: SDIO [VDD, IO(MAX), T]
B123: HSIO [VDD, IO(MAX), T]
B124: HDIO [VDD, IO(MAX), T]
B125: ODIO [VDD, IO(MAX), T]
A127: PMU
A128: Parameter | B128: Test Conditions | C128: Value | D128: Units
A129: IBOR, RUN | B129: BOR current consumption in RUN/SLEEP/STOP mode | C129: 5 | D129: uA | F129: I2C Controller
A130: IBOR, LP | B130: BOR current consumption in STANDBY mode | C130: 50 | D130: nA | F130: Mode | G130: Total Consumption | H130: Baseline | I130: Peripheral consumption
A131: IPOR | B131: POR current consumption | C131: 35 | D131: nA | F131: Standard | G131: 2.352 | H131: 2.226 | I131: =G131-H131 -> 0.126
F132: Fast | G132: 2.355 | H132: 2.226 | I132: =G132-H132 -> 0.129
A133: I2C | F133: Fast+ | G133: 3.522 | H133: 2.226 | I133: =G133-H133 -> 1.296
A134: Parameter | B134: Test Conditions | C134: Value | D134: Units | F134: I2C Target
A135: Controller Mode | B135: Standard Speed, No Unused pin configuration | C135: =0.0949999999999998*10^3 -> 95 | D135: uA | F135: Mode | G135: Total Consumption | H135: Baseline | I135: Peripheral consumption
B136: Fast Mode, No unused pin configuration | C136: =0.0979999999999999*10^3 -> 98 | D136: uA | F136: Standard | G136: 2.367 | H136: 2.226 | I136: =G136-H136 -> 0.141
B137: Fast Mode Plus, No unused pin configuration | C137: =1.265*10^3 -> 1265 | D137: uA | F137: Fast
A138: Target Mode | C138: =0.11*10^3 -> 110 | D138: uA | F138: Fast+
A140: SPI | F140: SPI Controller
A141: Parameter | B141: Test Conditions | C141: Value | D141: Units | F141: Total consumption | G141: Baseline | H141: SPI Consumption | I141: Bus Speed | J141: Notes | K141: Total consumption | L141: Baseline | M141: SPI Consumption | N141: Bus Speed | O141: Notes
A142: Controller Mode | B142: 500kHz | C142: 0.175 | D142: mA | F142: 2.532 | G142: 2.226 | H142: =F142-G142 -> 0.306 | I142: 16 MHz | J142: Continuous mode | K142: 2.521 | L142: 2.226 | M142: =K142-L142 -> 0.295 | N142: 16 MHz | O142: Single Shot
A143: Target Mode | F143: 2.528 | G143: 2.226 | H143: =F143-G143 -> 0.302 | I143: 8 MHz | K143: 2.514 | L143: 2.226 | M143: =K143-L143 -> 0.288 | N143: 8 MHz
F144: 2.529 | G144: 2.226 | H144: =F144-G144 -> 0.303 | I144: 4 MHz | K144: 2.446 | L144: 2.226 | M144: =K144-L144 -> 0.22 | N144: 4 MHz
A145: MATHACL | F145: 2.529 | G145: 2.226 | H145: =F145-G145 -> 0.303 | I145: 2 MHz | K145: 2.444 | L145: 2.226 | M145: =K145-L145 -> 0.218 | N145: 2 MHz
A146: Parameter | B146: Test Conditions | C146: Value | D146: Units | F146: 2.529 | G146: 2.226 | H146: =F146-G146 -> 0.303 | I146: 1MHz | K146: 2.444 | L146: 2.226 | M146: =K146-L146 -> 0.218 | N146: 1MHz
A147: I MATHACL | B147: Multiply, SIN, and DIV operations | C147: 0.115 | D147: mA | F147: SPI Controller x2 (Sequential Data TX)
A148: UART | F148: Total consumption | G148: Baseline | H148: SPI Consumption | I148: Frequency | J148: Notes | K148: Total consumption | L148: Baseline | M148: SPI Consumption | N148: Bus Speed | O148: Notes
A149: Parameter | B149: Test Conditions | C149: Value | D149: Units | F149: 4.431 | G149: 2.226 | H149: =F149-G149 -> 2.205 | I149: 16 MHz | J149: Both Channels at same speed | K149: 2.701 | L149: 2.226 | M149: =K149-L149 -> 0.475 | N149: 16 MHz | O149: Sequential Single Shot same Bus CLK
A150: Baud Rate | B150: 9600 | C150: 0.115 | D150: mA | F150: 3.686 | G150: 2.226 | H150: =F150-G150 -> 1.46 | I150: 8 MHz | K150: 2.648 | L150: 2.226 | M150: =K150-L150 -> 0.422 | N150: 8 MHz
B151: 19200 | F151: 3.152 | G151: 2.226 | H151: =F151-G151 -> 0.926 | I151: 4 MHz | K151: 2.638 | L151: 2.226 | M151: =K151-L151 -> 0.412 | N151: 4 MHz
B152: 57600 | F152: 2.802 | G152: 2.226 | H152: =F152-G152 -> 0.576 | I152: 2 MHz | K152: 2.637 | L152: 2.226 | M152: =K152-L152 -> 0.411 | N152: 2 MHz
B153: 115200 | F153: 2.61 | G153: 2.226 | H153: =F153-G153 -> 0.384 | I153: 1MHz | K153: 2.63 | L153: 2.226 | M153: =K153-L153 -> 0.404 | N153: 1MHz
F155: 9600 | G155: 2.1142 | H155: 2.1153 | I155: =AVERAGE(G155,G156,H155,H156) -> 2.116075
G156: 2.1163 | H156: 2.1185
F158: 19200 | G158: 2.1207 | H158: 2.1217 | I158: =AVERAGE(G158:G159,H158:H159) -> 2.1215
G159: 2.1212 | H159: 2.1224
F161: 57600 | G161: 2.1454 | H161: 2.1565 | I161: =AVERAGE(G161:H162) -> 2.14865
G162: 2.1457 | H162: 2.147
F164: 115200 | G164: 2.1822 | H164: 2.1835 | I164: =AVERAGE(G164:H165) -> 2.1828
G165: 2.182 | H165: 2.1835 | N165: 500kHz | O165: 1.227765
N166: 1MHz | O166: 1.355645
N167: 1.5MHz | O167: 1.253095
N168: 2MHz | O168: 1.496518333
N169: 2.5MHz | O169: 1.403951667
N170: 3.5MHz | O170: 1.579635
A171: VDD | B171: Temp | C171: Unit | D171: Device | E171: CLKDIV | F171: SCOMP | G171: Baseline1 | H171: ADC IQQ | I171: Baseline2 | J171: ADCIQQ+Baseline1 | K171: Throughput | L171: ADC IQQ _mA | N171: 4MHz | O171: 1.651876667
A172: VDD3.3 | B172: TEMP 25C | C172: A3_NOM | D172: N23 | E172: 8 | F172: 2 | G172: 0.00157238 | H172: 0.00117939 | I172: 0.00155714 | J172: 0.00275177 | K172: 500000 | L172: 1.17939
A173: VDD3.3 | B173: TEMP 25C | C173: A3_NOM | D173: N26 | E173: 8 | F173: 2 | G173: 0.00157423 | H173: 0.00128128 | I173: 0.00155836 | J173: 0.00285551 | K173: 500000 | L173: 1.28128
A174: VDD3.3 | B174: TEMP 25C | C174: A3_NOM | D174: N31 | E174: 8 | F174: 2 | G174: 0.00159047 | H174: 0.00126691 | I174: 0.00157576 | J174: 0.00285738 | K174: 500000 | L174: 1.26691
A175: VDD3.3 | B175: TEMP 25C | C175: A3_NOM | D175: O25 | E175: 8 | F175: 2 | G175: 0.00158484 | H175: 0.00114455 | I175: 0.00157037 | J175: 0.00272939 | K175: 500000 | L175: 1.14455
A176: VDD3.3 | B176: TEMP 25C | C176: A3_NOM | D176: O9 | E176: 8 | F176: 2 | G176: 0.00155152 | H176: 0.00119617 | I176: 0.00153679 | J176: 0.00274769 | K176: 500000 | L176: 1.19617
A177: VDD3.3 | B177: TEMP 25C | C177: A3_NOM | D177: N35 | E177: 8 | F177: 2 | G177: 0.00161134 | H177: 0.00129829 | I177: 0.00159613 | J177: 0.00290962 | K177: 500000 | L177: 1.29829
L178: =AVERAGE(L172:L177) -> 1.227765
A179: VDD | B179: Temp | C179: Unit | D179: Device | E179: CLKDIV | F179: SCOMP | G179: Baseline1 | H179: ADC IQQ | I179: Baseline2 | J179: ADCIQQ+Baseline1 | K179: Throughput | L179: ADC IQQ _mA
A180: VDD3.3 | B180: TEMP 25C | C180: A3_NOM | D180: N23 | E180: 4 | F180: 2 | G180: 0.00157237 | H180: 0.00130609 | I180: 0.0015572 | J180: 0.00287846 | K180: 1000000 | L180: 1.30609
A181: VDD3.3 | B181: TEMP 25C | C181: A3_NOM | D181: N26 | E181: 4 | F181: 2 | G181: 0.00157474 | H181: 0.00140671 | I181: 0.00155851 | J181: 0.00298145 | K181: 1000000 | L181: 1.40671
A182: VDD3.3 | B182: TEMP 25C | C182: A3_NOM | D182: N31 | E182: 4 | F182: 2 | G182: 0.00159001 | H182: 0.00138843 | I182: 0.00157493 | J182: 0.00297844 | K182: 1000000 | L182: 1.38843
A183: VDD3.3 | B183: TEMP 25C | C183: A3_NOM | D183: O25 | E183: 4 | F183: 2 | G183: 0.00158499 | H183: 0.00127512 | I183: 0.00157028 | J183: 0.00286012 | K183: 1000000 | L183: 1.27512
A184: VDD3.3 | B184: TEMP 25C | C184: A3_NOM | D184: O9 | E184: 4 | F184: 2 | G184: 0.00155121 | H184: 0.00132881 | I184: 0.00153702 | J184: 0.00288001 | K184: 1000000 | L184: 1.32881
A185: VDD3.3 | B185: TEMP 25C | C185: A3_NOM | D185: N35 | E185: 4 | F185: 2 | G185: 0.00161082 | H185: 0.00142871 | I185: 0.00159557 | J185: 0.00303953 | K185: 1000000 | L185: 1.42871
L186: =AVERAGE(L180:L185) -> 1.355645
A187: VDD | B187: Temp | C187: Unit | D187: Device | E187: CLKDIV | F187: SCOMP | G187: Baseline1 | H187: ADC IQQ | I187: Baseline2 | J187: ADCIQQ+Baseline1 | K187: Throughput | L187: ADC IQQ _mA
A188: VDD3.3 | B188: TEMP 25C | C188: A3_NOM | D188: N23 | E188: 1 | F188: 15 | G188: 0.00157235 | H188: 0.00120499 | I188: 0.00155679 | J188: 0.00277734 | K188: 1523810 | L188: 1.20499
A189: VDD3.3 | B189: TEMP 25C | C189: A3_NOM | D189: N26 | E189: 1 | F189: 15 | G189: 0.00157399 | H189: 0.00130573 | I189: 0.0015586 | J189: 0.00287972 | K189: 1523810 | L189: 1.30573
A190: VDD3.3 | B190: TEMP 25C | C190: A3_NOM | D190: N31 | E190: 1 | F190: 15 | G190: 0.00158967 | H190: 0.00129043 | I190: 0.00157467 | J190: 0.00288011 | K190: 1523810 | L190: 1.29043
A191: VDD3.3 | B191: TEMP 25C | C191: A3_NOM | D191: O25 | E191: 1 | F191: 15 | G191: 0.00158515 | H191: 0.00117075 | I191: 0.00157049 | J191: 0.0027559 | K191: 1523810 | L191: 1.17075
A192: VDD3.3 | B192: TEMP 25C | C192: A3_NOM | D192: O9 | E192: 1 | F192: 15 | G192: 0.00155133 | H192: 0.0012223 | I192: 0.00153698 | J192: 0.00277363 | K192: 1523810 | L192: 1.2223
A193: VDD3.3 | B193: TEMP 25C | C193: A3_NOM | D193: N35 | E193: 1 | F193: 15 | G193: 0.00161103 | H193: 0.00132437 | I193: 0.00159581 | J193: 0.0029354 | K193: 1523810 | L193: 1.32437
L194: =AVERAGE(L188:L193) -> 1.253095
A195: VDD | B195: Temp | C195: Unit | D195: Device | E195: CLKDIV | F195: SCOMP | G195: Baseline1 | H195: ADC IQQ | I195: Baseline2 | J195: ADCIQQ+Baseline1 | K195: Throughput | L195: ADC IQQ _mA
A196: VDD3.3 | B196: TEMP 25C | C196: A3_NOM | D196: N23 | E196: 2 | F196: 2 | G196: 0.00157226 | H196: 0.00144565 | I196: 0.00155704 | J196: 0.00301791 | K196: 2000000 | L196: 1.44565
A197: VDD3.3 | B197: TEMP 25C | C197: A3_NOM | D197: N26 | E197: 2 | F197: 2 | G197: 0.00157402 | H197: 0.00154634 | I197: 0.0015585 | J197: 0.00312036 | K197: 2000000 | L197: 1.54634
A198: VDD3.3 | B198: TEMP 25C | C198: A3_NOM | D198: N31 | E198: 2 | F198: 2 | G198: 0.00158979 | H198: 0.00152058 | I198: 0.00157408 | J198: 0.00311036 | K198: 2000000 | L198: 1.52058
A199: VDD3.3 | B199: TEMP 25C | C199: A3_NOM | D199: O25 | E199: 2 | F199: 2 | G199: 0.00158479 | H199: 0.00142015 | I199: 0.0015704 | J199: 0.00300493 | K199: 2000000 | L199: 1.42015
A200: VDD3.3 | B200: TEMP 25C | C200: A3_NOM | D200: O9 | E200: 2 | F200: 2 | G200: 0.00155147 | H200: 0.00147382 | I200: 0.00153716 | J200: 0.0030253 | K200: 2000000 | L200: 1.47382
A201: VDD3.3 | B201: TEMP 25C | C201: A3_NOM | D201: N35 | E201: 2 | F201: 2 | G201: 0.00161101 | H201: 0.00157257 | I201: 0.00159578 | J201: 0.00318359 | K201: 2000000 | L201: 1.57257
L202: =AVERAGE(L196:L201) -> 1.496518333
A203: VDD | B203: Temp | C203: Unit | D203: Device | E203: CLKDIV | F203: SCOMP | G203: Baseline1 | H203: ADC IQQ | I203: Baseline2 | J203: ADCIQQ+Baseline1 | K203: Throughput | L203: ADC IQQ _mA
A204: VDD3.3 | B204: TEMP 25C | C204: A3_NOM | D204: N23 | E204: 1 | F204: 7 | G204: 0.00157253 | H204: 0.00135444 | I204: 0.00155717 | J204: 0.00292697 | K204: 2461540 | L204: 1.35444
A205: VDD3.3 | B205: TEMP 25C | C205: A3_NOM | D205: N26 | E205: 1 | F205: 7 | G205: 0.00157409 | H205: 0.00145465 | I205: 0.00155861 | J205: 0.00302874 | K205: 2461540 | L205: 1.45465
A206: VDD3.3 | B206: TEMP 25C | C206: A3_NOM | D206: N31 | E206: 1 | F206: 7 | G206: 0.00159002 | H206: 0.00143235 | I206: 0.00157487 | J206: 0.00302238 | K206: 2461540 | L206: 1.43235
A207: VDD3.3 | B207: TEMP 25C | C207: A3_NOM | D207: O25 | E207: 1 | F207: 7 | G207: 0.0015852 | H207: 0.00132539 | I207: 0.00157051 | J207: 0.00291059 | K207: 2461540 | L207: 1.32539
A208: VDD3.3 | B208: TEMP 25C | C208: A3_NOM | D208: O9 | E208: 1 | F208: 7 | G208: 0.00155148 | H208: 0.00137776 | I208: 0.00153715 | J208: 0.00292924 | K208: 2461540 | L208: 1.37776
A209: VDD3.3 | B209: TEMP 25C | C209: A3_NOM | D209: N35 | E209: 1 | F209: 7 | G209: 0.00161092 | H209: 0.00147912 | I209: 0.00159586 | J209: 0.00309003 | K209: 2461540 | L209: 1.47912
L210: =AVERAGE(L204:L209) -> 1.403951667
A211: VDD | B211: Temp | C211: Unit | D211: Device | E211: CLKDIV | F211: SCOMP | G211: Baseline1 | H211: ADC IQQ | I211: Baseline2 | J211: ADCIQQ+Baseline1 | K211: Throughput | L211: ADC IQQ _mA
A212: VDD3.3 | B212: TEMP 25C | C212: A3_NOM | D212: N23 | E212: 1 | F212: 3 | G212: 0.00157239 | H212: 0.00152794 | I212: 0.001557 | J212: 0.00310033 | K212: 3555560 | L212: 1.52794
A213: VDD3.3 | B213: TEMP 25C | C213: A3_NOM | D213: N26 | E213: 1 | F213: 3 | G213: 0.00157434 | H213: 0.00162705 | I213: 0.00155842 | J213: 0.00320139 | K213: 3555560 | L213: 1.62705
A214: VDD3.3 | B214: TEMP 25C | C214: A3_NOM | D214: N31 | E214: 1 | F214: 3 | G214: 0.0015911 | H214: 0.00159841 | I214: 0.00157454 | J214: 0.00318952 | K214: 3555560 | L214: 1.59841
A215: VDD3.3 | B215: TEMP 25C | C215: A3_NOM | D215: O25 | E215: 1 | F215: 3 | G215: 0.00158502 | H215: 0.00150638 | I215: 0.0015706 | J215: 0.00309141 | K215: 3555560 | L215: 1.50638
A216: VDD3.3 | B216: TEMP 25C | C216: A3_NOM | D216: O9 | E216: 1 | F216: 3 | G216: 0.00155152 | H216: 0.00155877 | I216: 0.00153709 | J216: 0.00311029 | K216: 3555560 | L216: 1.55877
A217: VDD3.3 | B217: TEMP 25C | C217: A3_NOM | D217: N35 | E217: 1 | F217: 3 | G217: 0.00161081 | H217: 0.00165926 | I217: 0.00159556 | J217: 0.00327008 | K217: 3555560 | L217: 1.65926
L218: =AVERAGE(L212:L217) -> 1.579635
A219: VDD | B219: Temp | C219: Unit | D219: Device | E219: CLKDIV | F219: SCOMP | G219: Baseline1 | H219: ADC IQQ | I219: Baseline2 | J219: ADCIQQ+Baseline1 | K219: Throughput | L219: ADC IQQ _mA
A220: VDD3.3 | B220: TEMP 25C | C220: A3_NOM | D220: N23 | E220: 1 | F220: 2 | G220: 0.00157244 | H220: 0.00159971 | I220: 0.00155705 | J220: 0.00317215 | K220: 4000000 | L220: 1.59971
A221: VDD3.3 | B221: TEMP 25C | C221: A3_NOM | D221: N26 | E221: 1 | F221: 2 | G221: 0.00157398 | H221: 0.00169861 | I221: 0.00155822 | J221: 0.00327259 | K221: 4000000 | L221: 1.69861
... 5 more rows

Sheet Application Menus (hidden)
A1: Target Device | B1: Port | C1: Baud Rate | D1: Measurement | E1: Acquisition Frequency | F1: Operation Mode | G1: Add a Peripheral | I1: MCLK Source | J1: MCLK Frequency | L1: Mode DD | M1: MCLK DD | N1: MCLK Freq DD
A2: DMM1 | B2: 1 | C2: 9600 | D2: Voltage | E2: Single Shot | F2: Run 0 | G2: GPIOA | I2: SYSPLL | J2: 80 MHz | L2: Run 0 | M2: SYSPLL | N2: 80 MHz | P2: SYSPLL | Q2: 80 MHz | R2: Run 0
A3: DMM2 | B3: 2 | C3: 115200 | D3: Current | E3: Continuous | F3: Run 1 | G3: GPIOB | J3: 48 MHz | M3: SYSOSC | N3: 48 MHz | Q3: 48 MHz
B4: 3 | D4: Voltage (Mean) | F4: Run 2 | G4: ADC0 | I4: SYSOSC | J4: 32 MHz | M4: LFOSC | N4: 32 MHz | P4: SYSOSC | Q4: 32 MHz
B5: 4 | D5: Current (Mean) | F5: Sleep 0 | G5: ADC1 | J5: 4 MHz | M5: LFXT | N5: 4 MHz | Q5: 4 MHz
F6: Sleep 1 | G6: DAC0 | I6: ULPCLK | J6: 4 MHz | N6: 32 kHz | P6: SYSOSC | Q6: 32 MHz | R6: Run 1
F7: Sleep 2 | G7: OPA0 | I7: LFOSC | J7: 32 kHz | L7: Run 1 | M7: SYSOSC | N7: 32 MHz | Q7: 4 MHz
F8: Stop 0 | G8: OPA1 | I8: LFXT | J8: 32 kHz | M8: LFOSC | N8: 4 MHz | P8: LFOSC & LFXT | Q8: 32 kHz
F9: Stop 1 | G9: GPAMP | I9: LFCLK | J9: 32 kHz | M9: LFXT | N9: 32 kHz | P9: LFOSC & LFXT | Q9: 32 kHz | R9: Run 2
F10: Stop 2 | G10: COMP0 | N10: 32 kHz | P10: SYSPLL | Q10: 80 MHz | R10: Sleep 0
F11: Standby 0 | G11: COMP1 | L11: Run 2 | M11: LFOSC | N11: 32 kHz | Q11: 48 MHz
F12: Standby 1 | G12: COMP2 | M12: LFXT | N12: 32 kHz | P12: SYSOSC | Q12: 32 MHz
F13: Shutdown | G13: RTC | L13: Sleep 0 | M13: SYSPLL | N13: 80 MHz | Q13: 4 MHz
G14: TIMA0 | M14: SYSOSC | N14: 48 MHz | P14: SYSPLL | Q14: 80 MHz | R14: Sleep 1
G15: TIMA1 | M15: LFOSC | N15: 32 MHz | Q15: 48 MHz
G16: TIMG6 | M16: LFXT | N16: 4 MHz | P16: SYSOSC | Q16: 32 MHz
G17: TIMG7 | N17: 32 kHz | Q17: 4 MHz
G18: TIMG0 | N18: 32 kHz | P18: SYSPLL | Q18: 80 MHz | R18: Sleep 2
G19: TIMG1 | I19: ='Power Data'!I111 -> 0 | L19: Sleep 1 | M19: SYSOSC | N19: 32 MHz | Q19: 48 MHz
G20: TIMG8 | M20: LFOSC | N20: 4 MHz | P20: SYSOSC | Q20: 32 MHz
G21: TIMG12 | M21: LFXT | N21: 32 kHz | Q21: 4 MHz
G22: WWDT0 | N22: 32 kHz | P22: ULPCLK | Q22: 4 MHz | R22: Stop 0
G23: WWDT1 | L23: Sleep 2 | M23: LFOSC | N23: 32 kHz | P23: ULPCLK | Q23: 4 MHz | R23: Stop 1
G24: SPI0 | M24: LFXT | N24: 32 kHz | P24: LFCLK | Q24: 32 kHz | R24: Stop 2
G25: SPI1 | L25: Stop 0 | M25: ULPCLK | N25: 4 MHz | P25: LFOSC | Q25: 32 kHz | R25: Standby 0
G26: I2C0 | L26: Stop 1 | M26: ULPCLK | N26: 4 MHz | P26: LFXT
G27: I2C1 | L27: Stop 2 | M27: LFCLK | N27: 32 kHz | P27: LFOSC | Q27: 32 kHz | R27: Standby 1
G28: UART0 | L28: Standby 0 | M28: LFOSC | N28: 32 kHz | P28: LFXT
G29: UART1 | M29: LFXT | N29: 32 kHz
G30: UART2 | L30: Standby 1 | M30: LFOSC | N30: 32 kHz
G31: UART3 | M31: LFXT | N31: 32 kHz
G32: MCAN0
G33: MATHACL
G34: AES
G35: TRNG

Sheet Operation Modes (hidden)
A1: OPERATING MODE | C1: Run | F1: Sleep | I1: Stop | L1: Standby | Q1: Population Values | T1: Mode Status
C2: Run 0 | D2: Run 1 | E2: Run 2 | F2: Sleep 0 | G2: Sleep 1 | H2: Sleep 2 | I2: Stop 0 | J2: Stop 1 | K2: Stop 2 | L2: Standby 0 | M2: Standby 1 | N2: Shutdown | P2: =CELL("col",INDEX('Operation Modes'!C2:N2,MATCH('Subsystem Inputs'!B2,'Operation Modes'!C2:N2,0))) -> 3 | Q2: SYSOSC | R2: =_xlfn.SWITCH('Subsystem Inputs'!$B$2,'Operation Modes'!$C$2,'Operation Modes'!C3,'Operation Modes'!$D$2,'Operation Modes'!D3,'Operation Modes'!$E$2,'Operation Modes'!E3,'Operation Modes'!$F$2,'Operation Modes'!F3,'Operation Modes'!$G$2,'Operation Modes'!G3,'Operation Modes'!$H$2,'Operation Modes'!H3,'Operation Modes'!$I$2,'Operation Modes'!I3,'Operation Modes'!$J$2,'Operation Modes'!J3,'Operation Modes'!$K$2,'Operation Modes'!K3,'Operation Modes'!$L$2,'Operation Modes'!L3,'Operation Modes'!$M$2,'Operation Modes'!M3,'Operation Modes'!$N$2,'Operation Modes'!N3) -> EN | T2: EN
A3: Oscillators | B3: SYSOSC | C3: EN | D3: EN | E3: DIS | F3: EN | G3: EN | H3: DIS | I3: OPT | J3: EN | K3: DIS | L3: DIS | M3: DIS | N3: OFF | Q3: LFOSC or LFXT | R3: =_xlfn.SWITCH('Subsystem Inputs'!$B$2,'Operation Modes'!$C$2,'Operation Modes'!C4,'Operation Modes'!$D$2,'Operation Modes'!D4,'Operation Modes'!$E$2,'Operation Modes'!E4,'Operation Modes'!$F$2,'Operation Modes'!F4,'Operation Modes'!$G$2,'Operation Modes'!G4,'Operation Modes'!$H$2,'Operation Modes'!H4,'Operation Modes'!$I$2,'Operation Modes'!I4,'Operation Modes'!$J$2,'Operation Modes'!J4,'Operation Modes'!$K$2,'Operation Modes'!K4,'Operation Modes'!$L$2,'Operation Modes'!L4,'Operation Modes'!$M$2,'Operation Modes'!M4,'Operation Modes'!$N$2,'Operation Modes'!N4) -> EN (LFOSC or LFXT) | T3: DIS
B4: LFOSC or LFXT | C4: EN (LFOSC or LFXT) | D4: EN (LFOSC or LFXT) | E4: EN (LFOSC or LFXT) | F4: EN (LFOSC or LFXT) | G4: EN (LFOSC or LFXT) | H4: EN (LFOSC or LFXT) | I4: EN (LFOSC or LFXT) | J4: EN (LFOSC or LFXT) | K4: EN (LFOSC or LFXT) | L4: EN (LFOSC or LFXT) | M4: EN (LFOSC or LFXT) | N4: OFF | Q4: HFXT | R4: =_xlfn.SWITCH('Subsystem Inputs'!$B$2,'Operation Modes'!$C$2,'Operation Modes'!C5,'Operation Modes'!$D$2,'Operation Modes'!D5,'Operation Modes'!$E$2,'Operation Modes'!E5,'Operation Modes'!$F$2,'Operation Modes'!F5,'Operation Modes'!$G$2,'Operation Modes'!G5,'Operation Modes'!$H$2,'Operation Modes'!H5,'Operation Modes'!$I$2,'Operation Modes'!I5,'Operation Modes'!$J$2,'Operation Modes'!J5,'Operation Modes'!$K$2,'Operation Modes'!K5,'Operation Modes'!$L$2,'Operation Modes'!L5,'Operation Modes'!$M$2,'Operation Modes'!M5,'Operation Modes'!$N$2,'Operation Modes'!N5) -> OPT | T4: OPT
B5: HFXT | C5: OPT | D5: DIS | E5: DIS | F5: OPT | G5: DIS | H5: DIS | I5: DIS | J5: DIS | K5: DIS | L5: DIS | M5: DIS | N5: OFF | Q5: SYSPLL | R5: =_xlfn.SWITCH('Subsystem Inputs'!$B$2,'Operation Modes'!$C$2,'Operation Modes'!C6,'Operation Modes'!$D$2,'Operation Modes'!D6,'Operation Modes'!$E$2,'Operation Modes'!E6,'Operation Modes'!$F$2,'Operation Modes'!F6,'Operation Modes'!$G$2,'Operation Modes'!G6,'Operation Modes'!$H$2,'Operation Modes'!H6,'Operation Modes'!$I$2,'Operation Modes'!I6,'Operation Modes'!$J$2,'Operation Modes'!J6,'Operation Modes'!$K$2,'Operation Modes'!K6,'Operation Modes'!$L$2,'Operation Modes'!L6,'Operation Modes'!$M$2,'Operation Modes'!M6,'Operation Modes'!$N$2,'Operation Modes'!N6) -> OPT | T5: OFF
B6: SYSPLL | C6: OPT | D6: DIS | E6: DIS | F6: OPT | G6: DIS | H6: DIS | I6: DIS | J6: DIS | K6: DIS | L6: DIS | M6: DIS | N6: OFF | Q6: CPUCLK | R6: =_xlfn.SWITCH('Subsystem Inputs'!$B$2,'Operation Modes'!$C$2,'Operation Modes'!C7,'Operation Modes'!$D$2,'Operation Modes'!D7,'Operation Modes'!$E$2,'Operation Modes'!E7,'Operation Modes'!$F$2,'Operation Modes'!F7,'Operation Modes'!$G$2,'Operation Modes'!G7,'Operation Modes'!$H$2,'Operation Modes'!H7,'Operation Modes'!$I$2,'Operation Modes'!I7,'Operation Modes'!$J$2,'Operation Modes'!J7,'Operation Modes'!$K$2,'Operation Modes'!K7,'Operation Modes'!$L$2,'Operation Modes'!L7,'Operation Modes'!$M$2,'Operation Modes'!M7,'Operation Modes'!$N$2,'Operation Modes'!N7) -> 80 MHz | T6: EN (LFOSC or LFXT)
A7: Clocks | B7: CPUCLK | C7: 80 MHz | D7: 32 kHz | E7: 32 kHz | F7: DIS | G7: DIS | H7: DIS | I7: DIS | J7: DIS | K7: DIS | L7: DIS | M7: DIS | N7: OFF | Q7: MCLK to PD1 | R7: =_xlfn.SWITCH('Subsystem Inputs'!$B$2,'Operation Modes'!$C$2,'Operation Modes'!C8,'Operation Modes'!$D$2,'Operation Modes'!D8,'Operation Modes'!$E$2,'Operation Modes'!E8,'Operation Modes'!$F$2,'Operation Modes'!F8,'Operation Modes'!$G$2,'Operation Modes'!G8,'Operation Modes'!$H$2,'Operation Modes'!H8,'Operation Modes'!$I$2,'Operation Modes'!I8,'Operation Modes'!$J$2,'Operation Modes'!J8,'Operation Modes'!$K$2,'Operation Modes'!K8,'Operation Modes'!$L$2,'Operation Modes'!L8,'Operation Modes'!$M$2,'Operation Modes'!M8,'Operation Modes'!$N$2,'Operation Modes'!N8) -> 80 MHz
B8: MCLK to PD1 | C8: 80 MHz | D8: 32 kHz | E8: 32 kHz | F8: 80 MHz | G8: 32 kHz | H8: 32 kHz | I8: DIS | J8: DIS | K8: DIS | L8: DIS | M8: DIS | N8: OFF | Q8: ULPCLK to PD0 | R8: =_xlfn.SWITCH('Subsystem Inputs'!$B$2,'Operation Modes'!$C$2,'Operation Modes'!C9,'Operation Modes'!$D$2,'Operation Modes'!D9,'Operation Modes'!$E$2,'Operation Modes'!E9,'Operation Modes'!$F$2,'Operation Modes'!F9,'Operation Modes'!$G$2,'Operation Modes'!G9,'Operation Modes'!$H$2,'Operation Modes'!H9,'Operation Modes'!$I$2,'Operation Modes'!I9,'Operation Modes'!$J$2,'Operation Modes'!J9,'Operation Modes'!$K$2,'Operation Modes'!K9,'Operation Modes'!$L$2,'Operation Modes'!L9,'Operation Modes'!$M$2,'Operation Modes'!M9,'Operation Modes'!$N$2,'Operation Modes'!N9) -> 40 MHz
B9: ULPCLK to PD0 | C9: 40 MHz | D9: 32 kHz | E9: 32 kHz | F9: 40 MHz | G9: 32 kHz | H9: 32 kHz | I9: 4 MHz | J9: 4 MHz | K9: 32 kHz | L9: 32 kHz | M9: DIS | N9: OFF | Q9: ULPCLK to TIMG0/8 | R9: =_xlfn.SWITCH('Subsystem Inputs'!$B$2,'Operation Modes'!$C$2,'Operation Modes'!C10,'Operation Modes'!$D$2,'Operation Modes'!D10,'Operation Modes'!$E$2,'Operation Modes'!E10,'Operation Modes'!$F$2,'Operation Modes'!F10,'Operation Modes'!$G$2,'Operation Modes'!G10,'Operation Modes'!$H$2,'Operation Modes'!H10,'Operation Modes'!$I$2,'Operation Modes'!I10,'Operation Modes'!$J$2,'Operation Modes'!J10,'Operation Modes'!$K$2,'Operation Modes'!K10,'Operation Modes'!$L$2,'Operation Modes'!L10,'Operation Modes'!$M$2,'Operation Modes'!M10,'Operation Modes'!$N$2,'Operation Modes'!N10) -> 40 MHz
B10: ULPCLK to TIMG0/8 | C10: 40 MHz | D10: 32 kHz | E10: 32 kHz | F10: 40 MHz | G10: 32 kHz | H10: 32 kHz | I10: 4 MHz | J10: 4 MHz | K10: 32 kHz | L10: 32 kHz | M10: 32 kHz | N10: OFF | Q10: RTCCLK | R10: =_xlfn.SWITCH('Subsystem Inputs'!$B$2,'Operation Modes'!$C$2,'Operation Modes'!C11,'Operation Modes'!$D$2,'Operation Modes'!D11,'Operation Modes'!$E$2,'Operation Modes'!E11,'Operation Modes'!$F$2,'Operation Modes'!F11,'Operation Modes'!$G$2,'Operation Modes'!G11,'Operation Modes'!$H$2,'Operation Modes'!H11,'Operation Modes'!$I$2,'Operation Modes'!I11,'Operation Modes'!$J$2,'Operation Modes'!J11,'Operation Modes'!$K$2,'Operation Modes'!K11,'Operation Modes'!$L$2,'Operation Modes'!L11,'Operation Modes'!$M$2,'Operation Modes'!M11,'Operation Modes'!$N$2,'Operation Modes'!N11) -> 32 kHz
B11: RTCCLK | C11: 32 kHz | D11: 32 kHz | E11: 32 kHz | F11: 32 kHz | G11: 32 kHz | H11: 32 kHz | I11: 32 kHz | J11: 32 kHz | K11: 32 kHz | L11: 32 kHz | M11: 32 kHz | N11: OFF | Q11: MFCLK | R11: =_xlfn.SWITCH('Subsystem Inputs'!$B$2,'Operation Modes'!$C$2,'Operation Modes'!C12,'Operation Modes'!$D$2,'Operation Modes'!D12,'Operation Modes'!$E$2,'Operation Modes'!E12,'Operation Modes'!$F$2,'Operation Modes'!F12,'Operation Modes'!$G$2,'Operation Modes'!G12,'Operation Modes'!$H$2,'Operation Modes'!H12,'Operation Modes'!$I$2,'Operation Modes'!I12,'Operation Modes'!$J$2,'Operation Modes'!J12,'Operation Modes'!$K$2,'Operation Modes'!K12,'Operation Modes'!$L$2,'Operation Modes'!L12,'Operation Modes'!$M$2,'Operation Modes'!M12,'Operation Modes'!$N$2,'Operation Modes'!N12) -> OPT
B12: MFCLK | C12: OPT | D12: DIS | E12: DIS | F12: OPT | G12: DIS | H12: DIS | I12: OPT | J12: OPT | K12: DIS | L12: DIS | M12: DIS | N12: OFF | Q12: MFPCLK | R12: =_xlfn.SWITCH('Subsystem Inputs'!$B$2,'Operation Modes'!$C$2,'Operation Modes'!C13,'Operation Modes'!$D$2,'Operation Modes'!D13,'Operation Modes'!$E$2,'Operation Modes'!E13,'Operation Modes'!$F$2,'Operation Modes'!F13,'Operation Modes'!$G$2,'Operation Modes'!G13,'Operation Modes'!$H$2,'Operation Modes'!H13,'Operation Modes'!$I$2,'Operation Modes'!I13,'Operation Modes'!$J$2,'Operation Modes'!J13,'Operation Modes'!$K$2,'Operation Modes'!K13,'Operation Modes'!$L$2,'Operation Modes'!L13,'Operation Modes'!$M$2,'Operation Modes'!M13,'Operation Modes'!$N$2,'Operation Modes'!N13) -> OPT
B13: MFPCLK | C13: OPT | D13: DIS | E13: DIS | F13: OPT | G13: DIS | H13: DIS | I13: OPT | J13: OPT | K13: DIS | L13: DIS | M13: DIS | N13: OFF | Q13: LFCLK | R13: =_xlfn.SWITCH('Subsystem Inputs'!$B$2,'Operation Modes'!$C$2,'Operation Modes'!C14,'Operation Modes'!$D$2,'Operation Modes'!D14,'Operation Modes'!$E$2,'Operation Modes'!E14,'Operation Modes'!$F$2,'Operation Modes'!F14,'Operation Modes'!$G$2,'Operation Modes'!G14,'Operation Modes'!$H$2,'Operation Modes'!H14,'Operation Modes'!$I$2,'Operation Modes'!I14,'Operation Modes'!$J$2,'Operation Modes'!J14,'Operation Modes'!$K$2,'Operation Modes'!K14,'Operation Modes'!$L$2,'Operation Modes'!L14,'Operation Modes'!$M$2,'Operation Modes'!M14,'Operation Modes'!$N$2,'Operation Modes'!N14) -> 32 kHz
B14: LFCLK | C14: 32 kHz | D14: 32 kHz | E14: 32 kHz | F14: 32 kHz | G14: 32 kHz | H14: 32 kHz | I14: 32 kHz | J14: 32 kHz | K14: 32 kHz | L14: 32 kHz | M14: DIS | N14: OFF | Q14: LFCLK to TIMG0/8 | R14: =_xlfn.SWITCH('Subsystem Inputs'!$B$2,'Operation Modes'!$C$2,'Operation Modes'!C15,'Operation Modes'!$D$2,'Operation Modes'!D15,'Operation Modes'!$E$2,'Operation Modes'!E15,'Operation Modes'!$F$2,'Operation Modes'!F15,'Operation Modes'!$G$2,'Operation Modes'!G15,'Operation Modes'!$H$2,'Operation Modes'!H15,'Operation Modes'!$I$2,'Operation Modes'!I15,'Operation Modes'!$J$2,'Operation Modes'!J15,'Operation Modes'!$K$2,'Operation Modes'!K15,'Operation Modes'!$L$2,'Operation Modes'!L15,'Operation Modes'!$M$2,'Operation Modes'!M15,'Operation Modes'!$N$2,'Operation Modes'!N15) -> 32 kHz
B15: LFCLK to TIMG0/8 | C15: 32 kHz | D15: 32 kHz | E15: 32 kHz | F15: 32 kHz | G15: 32 kHz | H15: 32 kHz | I15: 32 kHz | J15: 32 kHz | K15: 32 kHz | L15: 32 kHz | M15: 32 kHz | N15: OFF | Q15: LFCLK Monitor | R15: =_xlfn.SWITCH('Subsystem Inputs'!$B$2,'Operation Modes'!$C$2,'Operation Modes'!C16,'Operation Modes'!$D$2,'Operation Modes'!D16,'Operation Modes'!$E$2,'Operation Modes'!E16,'Operation Modes'!$F$2,'Operation Modes'!F16,'Operation Modes'!$G$2,'Operation Modes'!G16,'Operation Modes'!$H$2,'Operation Modes'!H16,'Operation Modes'!$I$2,'Operation Modes'!I16,'Operation Modes'!$J$2,'Operation Modes'!J16,'Operation Modes'!$K$2,'Operation Modes'!K16,'Operation Modes'!$L$2,'Operation Modes'!L16,'Operation Modes'!$M$2,'Operation Modes'!M16,'Operation Modes'!$N$2,'Operation Modes'!N16) -> OPT
B16: LFCLK Monitor | C16: OPT | D16: OPT | E16: OPT | F16: OPT | G16: OPT | H16: OPT | I16: OPT | J16: OPT | K16: OPT | L16: OPT | M16: OPT | N16: OFF | Q16: MCLK Monitor | R16: =_xlfn.SWITCH('Subsystem Inputs'!$B$2,'Operation Modes'!$C$2,'Operation Modes'!C17,'Operation Modes'!$D$2,'Operation Modes'!D17,'Operation Modes'!$E$2,'Operation Modes'!E17,'Operation Modes'!$F$2,'Operation Modes'!F17,'Operation Modes'!$G$2,'Operation Modes'!G17,'Operation Modes'!$H$2,'Operation Modes'!H17,'Operation Modes'!$I$2,'Operation Modes'!I17,'Operation Modes'!$J$2,'Operation Modes'!J17,'Operation Modes'!$K$2,'Operation Modes'!K17,'Operation Modes'!$L$2,'Operation Modes'!L17,'Operation Modes'!$M$2,'Operation Modes'!M17,'Operation Modes'!$N$2,'Operation Modes'!N17) -> OPT
B17: MCLK Monitor | C17: OPT | D17: OPT | E17: OPT | F17: OPT | G17: OPT | H17: OPT | I17: OPT | J17: OPT | K17: OPT | L17: OPT | M17: DIS | N17: OFF | Q17: POR monitor | R17: =_xlfn.SWITCH('Subsystem Inputs'!$B$2,'Operation Modes'!$C$2,'Operation Modes'!C18,'Operation Modes'!$D$2,'Operation Modes'!D18,'Operation Modes'!$E$2,'Operation Modes'!E18,'Operation Modes'!$F$2,'Operation Modes'!F18,'Operation Modes'!$G$2,'Operation Modes'!G18,'Operation Modes'!$H$2,'Operation Modes'!H18,'Operation Modes'!$I$2,'Operation Modes'!I18,'Operation Modes'!$J$2,'Operation Modes'!J18,'Operation Modes'!$K$2,'Operation Modes'!K18,'Operation Modes'!$L$2,'Operation Modes'!L18,'Operation Modes'!$M$2,'Operation Modes'!M18,'Operation Modes'!$N$2,'Operation Modes'!N18) -> EN
A18: PMU | B18: POR monitor | C18: EN | D18: EN | E18: EN | F18: EN | G18: EN | H18: EN | I18: EN | J18: EN | K18: EN | L18: EN | M18: EN | N18: EN | Q18: BOR monitor | R18: =_xlfn.SWITCH('Subsystem Inputs'!$B$2,'Operation Modes'!$C$2,'Operation Modes'!C19,'Operation Modes'!$D$2,'Operation Modes'!D19,'Operation Modes'!$E$2,'Operation Modes'!E19,'Operation Modes'!$F$2,'Operation Modes'!F19,'Operation Modes'!$G$2,'Operation Modes'!G19,'Operation Modes'!$H$2,'Operation Modes'!H19,'Operation Modes'!$I$2,'Operation Modes'!I19,'Operation Modes'!$J$2,'Operation Modes'!J19,'Operation Modes'!$K$2,'Operation Modes'!K19,'Operation Modes'!$L$2,'Operation Modes'!L19,'Operation Modes'!$M$2,'Operation Modes'!M19,'Operation Modes'!$N$2,'Operation Modes'!N19) -> EN
B19: BOR monitor | C19: EN | D19: EN | E19: EN | F19: EN | G19: EN | H19: EN | I19: EN | J19: EN | K19: EN | L19: EN | M19: EN | N19: OFF | Q19: Core regulator | R19: =_xlfn.SWITCH('Subsystem Inputs'!$B$2,'Operation Modes'!$C$2,'Operation Modes'!C20,'Operation Modes'!$D$2,'Operation Modes'!D20,'Operation Modes'!$E$2,'Operation Modes'!E20,'Operation Modes'!$F$2,'Operation Modes'!F20,'Operation Modes'!$G$2,'Operation Modes'!G20,'Operation Modes'!$H$2,'Operation Modes'!H20,'Operation Modes'!$I$2,'Operation Modes'!I20,'Operation Modes'!$J$2,'Operation Modes'!J20,'Operation Modes'!$K$2,'Operation Modes'!K20,'Operation Modes'!$L$2,'Operation Modes'!L20,'Operation Modes'!$M$2,'Operation Modes'!M20,'Operation Modes'!$N$2,'Operation Modes'!N20) -> FULL DRIVE
B20: Core regulator | C20: FULL DRIVE | D20: FULL DRIVE | E20: FULL DRIVE | F20: FULL DRIVE | G20: FULL DRIVE | H20: FULL DRIVE | I20: REDUCED DRIVE | J20: REDUCED DRIVE | K20: REDUCED DRIVE | L20: LOW DRIVE | M20: LOW DRIVE | N20: OFF | Q20: CPU | R20: =_xlfn.SWITCH('Subsystem Inputs'!$B$2,'Operation Modes'!$C$2,'Operation Modes'!C21,'Operation Modes'!$D$2,'Operation Modes'!D21,'Operation Modes'!$E$2,'Operation Modes'!E21,'Operation Modes'!$F$2,'Operation Modes'!F21,'Operation Modes'!$G$2,'Operation Modes'!G21,'Operation Modes'!$H$2,'Operation Modes'!H21,'Operation Modes'!$I$2,'Operation Modes'!I21,'Operation Modes'!$J$2,'Operation Modes'!J21,'Operation Modes'!$K$2,'Operation Modes'!K21,'Operation Modes'!$L$2,'Operation Modes'!L21,'Operation Modes'!$M$2,'Operation Modes'!M21,'Operation Modes'!$N$2,'Operation Modes'!N21) -> EN
A21: Core Functions | B21: CPU | C21: EN | D21: EN | E21: EN | F21: DIS | G21: DIS | H21: DIS | I21: DIS | J21: DIS | K21: DIS | L21: DIS | M21: DIS | N21: OFF | Q21: DMA | R21: =_xlfn.SWITCH('Subsystem Inputs'!$B$2,'Operation Modes'!$C$2,'Operation Modes'!C22,'Operation Modes'!$D$2,'Operation Modes'!D22,'Operation Modes'!$E$2,'Operation Modes'!E22,'Operation Modes'!$F$2,'Operation Modes'!F22,'Operation Modes'!$G$2,'Operation Modes'!G22,'Operation Modes'!$H$2,'Operation Modes'!H22,'Operation Modes'!$I$2,'Operation Modes'!I22,'Operation Modes'!$J$2,'Operation Modes'!J22,'Operation Modes'!$K$2,'Operation Modes'!K22,'Operation Modes'!$L$2,'Operation Modes'!L22,'Operation Modes'!$M$2,'Operation Modes'!M22,'Operation Modes'!$N$2,'Operation Modes'!N22) -> OPT
B22: DMA | C22: OPT | D22: OPT | E22: OPT | F22: OPT | G22: OPT | H22: OPT | I22: DIS | J22: DIS | K22: DIS | L22: DIS | M22: DIS | N22: OFF | Q22: Flash | R22: =_xlfn.SWITCH('Subsystem Inputs'!$B$2,'Operation Modes'!$C$2,'Operation Modes'!C23,'Operation Modes'!$D$2,'Operation Modes'!D23,'Operation Modes'!$E$2,'Operation Modes'!E23,'Operation Modes'!$F$2,'Operation Modes'!F23,'Operation Modes'!$G$2,'Operation Modes'!G23,'Operation Modes'!$H$2,'Operation Modes'!H23,'Operation Modes'!$I$2,'Operation Modes'!I23,'Operation Modes'!$J$2,'Operation Modes'!J23,'Operation Modes'!$K$2,'Operation Modes'!K23,'Operation Modes'!$L$2,'Operation Modes'!L23,'Operation Modes'!$M$2,'Operation Modes'!M23,'Operation Modes'!$N$2,'Operation Modes'!N23) -> EN
B23: Flash | C23: EN | D23: EN | E23: EN | F23: EN | G23: EN | H23: EN | I23: DIS | J23: DIS | K23: DIS | L23: DIS | M23: DIS | N23: OFF | Q23: SRAM | R23: =_xlfn.SWITCH('Subsystem Inputs'!$B$2,'Operation Modes'!$C$2,'Operation Modes'!C24,'Operation Modes'!$D$2,'Operation Modes'!D24,'Operation Modes'!$E$2,'Operation Modes'!E24,'Operation Modes'!$F$2,'Operation Modes'!F24,'Operation Modes'!$G$2,'Operation Modes'!G24,'Operation Modes'!$H$2,'Operation Modes'!H24,'Operation Modes'!$I$2,'Operation Modes'!I24,'Operation Modes'!$J$2,'Operation Modes'!J24,'Operation Modes'!$K$2,'Operation Modes'!K24,'Operation Modes'!$L$2,'Operation Modes'!L24,'Operation Modes'!$M$2,'Operation Modes'!M24,'Operation Modes'!$N$2,'Operation Modes'!N24) -> EN
B24: SRAM | C24: EN | D24: EN | E24: EN | F24: EN | G24: EN | H24: EN | I24: DIS | J24: DIS | K24: DIS | L24: DIS | M24: DIS | N24: OFF | Q24: CRC | R24: =_xlfn.SWITCH('Subsystem Inputs'!$B$2,'Operation Modes'!$C$2,'Operation Modes'!C25,'Operation Modes'!$D$2,'Operation Modes'!D25,'Operation Modes'!$E$2,'Operation Modes'!E25,'Operation Modes'!$F$2,'Operation Modes'!F25,'Operation Modes'!$G$2,'Operation Modes'!G25,'Operation Modes'!$H$2,'Operation Modes'!H25,'Operation Modes'!$I$2,'Operation Modes'!I25,'Operation Modes'!$J$2,'Operation Modes'!J25,'Operation Modes'!$K$2,'Operation Modes'!K25,'Operation Modes'!$L$2,'Operation Modes'!L25,'Operation Modes'!$M$2,'Operation Modes'!M25,'Operation Modes'!$N$2,'Operation Modes'!N25) -> OPT
A25: PD1 Peripherals | B25: CRC | C25: OPT | D25: OPT | E25: OPT | F25: OPT | G25: OPT | H25: OPT | I25: DIS | J25: DIS | K25: DIS | L25: DIS | M25: DIS | N25: OFF | Q25: UART3 | R25: =_xlfn.SWITCH('Subsystem Inputs'!$B$2,'Operation Modes'!$C$2,'Operation Modes'!C26,'Operation Modes'!$D$2,'Operation Modes'!D26,'Operation Modes'!$E$2,'Operation Modes'!E26,'Operation Modes'!$F$2,'Operation Modes'!F26,'Operation Modes'!$G$2,'Operation Modes'!G26,'Operation Modes'!$H$2,'Operation Modes'!H26,'Operation Modes'!$I$2,'Operation Modes'!I26,'Operation Modes'!$J$2,'Operation Modes'!J26,'Operation Modes'!$K$2,'Operation Modes'!K26,'Operation Modes'!$L$2,'Operation Modes'!L26,'Operation Modes'!$M$2,'Operation Modes'!M26,'Operation Modes'!$N$2,'Operation Modes'!N26) -> OPT
B26: UART3 | C26: OPT | D26: OPT | E26: OPT | F26: OPT | G26: OPT | H26: OPT | I26: DIS | J26: DIS | K26: DIS | L26: DIS | M26: DIS | N26: OFF | Q26: SPI0 | R26: =_xlfn.SWITCH('Subsystem Inputs'!$B$2,'Operation Modes'!$C$2,'Operation Modes'!C27,'Operation Modes'!$D$2,'Operation Modes'!D27,'Operation Modes'!$E$2,'Operation Modes'!E27,'Operation Modes'!$F$2,'Operation Modes'!F27,'Operation Modes'!$G$2,'Operation Modes'!G27,'Operation Modes'!$H$2,'Operation Modes'!H27,'Operation Modes'!$I$2,'Operation Modes'!I27,'Operation Modes'!$J$2,'Operation Modes'!J27,'Operation Modes'!$K$2,'Operation Modes'!K27,'Operation Modes'!$L$2,'Operation Modes'!L27,'Operation Modes'!$M$2,'Operation Modes'!M27,'Operation Modes'!$N$2,'Operation Modes'!N27) -> OPT
B27: SPI0 | C27: OPT | D27: OPT | E27: OPT | F27: OPT | G27: OPT | H27: OPT | I27: DIS | J27: DIS | K27: DIS | L27: DIS | M27: DIS | N27: OFF | Q27: SPI1 | R27: =_xlfn.SWITCH('Subsystem Inputs'!$B$2,'Operation Modes'!$C$2,'Operation Modes'!C28,'Operation Modes'!$D$2,'Operation Modes'!D28,'Operation Modes'!$E$2,'Operation Modes'!E28,'Operation Modes'!$F$2,'Operation Modes'!F28,'Operation Modes'!$G$2,'Operation Modes'!G28,'Operation Modes'!$H$2,'Operation Modes'!H28,'Operation Modes'!$I$2,'Operation Modes'!I28,'Operation Modes'!$J$2,'Operation Modes'!J28,'Operation Modes'!$K$2,'Operation Modes'!K28,'Operation Modes'!$L$2,'Operation Modes'!L28,'Operation Modes'!$M$2,'Operation Modes'!M28,'Operation Modes'!$N$2,'Operation Modes'!N28) -> OPT
B28: SPI1 | C28: OPT | D28: OPT | E28: OPT | F28: OPT | G28: OPT | H28: OPT | I28: DIS | J28: DIS | K28: DIS | L28: DIS | M28: DIS | N28: OFF | Q28: MATHACL | R28: =_xlfn.SWITCH('Subsystem Inputs'!$B$2,'Operation Modes'!$C$2,'Operation Modes'!C29,'Operation Modes'!$D$2,'Operation Modes'!D29,'Operation Modes'!$E$2,'Operation Modes'!E29,'Operation Modes'!$F$2,'Operation Modes'!F29,'Operation Modes'!$G$2,'Operation Modes'!G29,'Operation Modes'!$H$2,'Operation Modes'!H29,'Operation Modes'!$I$2,'Operation Modes'!I29,'Operation Modes'!$J$2,'Operation Modes'!J29,'Operation Modes'!$K$2,'Operation Modes'!K29,'Operation Modes'!$L$2,'Operation Modes'!L29,'Operation Modes'!$M$2,'Operation Modes'!M29,'Operation Modes'!$N$2,'Operation Modes'!N29) -> OPT
B29: MATHACL | C29: OPT | D29: OPT | E29: OPT | F29: OPT | G29: OPT | H29: OPT | I29: OFF | J29: OFF | K29: OFF | L29: OFF | M29: OFF | N29: OFF | Q29: AES | R29: =_xlfn.SWITCH('Subsystem Inputs'!$B$2,'Operation Modes'!$C$2,'Operation Modes'!C30,'Operation Modes'!$D$2,'Operation Modes'!D30,'Operation Modes'!$E$2,'Operation Modes'!E30,'Operation Modes'!$F$2,'Operation Modes'!F30,'Operation Modes'!$G$2,'Operation Modes'!G30,'Operation Modes'!$H$2,'Operation Modes'!H30,'Operation Modes'!$I$2,'Operation Modes'!I30,'Operation Modes'!$J$2,'Operation Modes'!J30,'Operation Modes'!$K$2,'Operation Modes'!K30,'Operation Modes'!$L$2,'Operation Modes'!L30,'Operation Modes'!$M$2,'Operation Modes'!M30,'Operation Modes'!$N$2,'Operation Modes'!N30) -> OPT
B30: AES | C30: OPT | D30: OPT | E30: OPT | F30: OPT | G30: OPT | H30: OPT | I30: OFF | J30: OFF | K30: OFF | L30: OFF | M30: OFF | N30: OFF | Q30: MCAN0 | R30: =_xlfn.SWITCH('Subsystem Inputs'!$B$2,'Operation Modes'!$C$2,'Operation Modes'!C31,'Operation Modes'!$D$2,'Operation Modes'!D31,'Operation Modes'!$E$2,'Operation Modes'!E31,'Operation Modes'!$F$2,'Operation Modes'!F31,'Operation Modes'!$G$2,'Operation Modes'!G31,'Operation Modes'!$H$2,'Operation Modes'!H31,'Operation Modes'!$I$2,'Operation Modes'!I31,'Operation Modes'!$J$2,'Operation Modes'!J31,'Operation Modes'!$K$2,'Operation Modes'!K31,'Operation Modes'!$L$2,'Operation Modes'!L31,'Operation Modes'!$M$2,'Operation Modes'!M31,'Operation Modes'!$N$2,'Operation Modes'!N31) -> OPT
B31: MCAN0 | C31: OPT | D31: OPT | E31: OPT | F31: OPT | G31: OPT | H31: OPT | I31: OFF | J31: OFF | K31: OFF | L31: OFF | M31: OFF | N31: OFF | Q31: TIMA0 | R31: =_xlfn.SWITCH('Subsystem Inputs'!$B$2,'Operation Modes'!$C$2,'Operation Modes'!C32,'Operation Modes'!$D$2,'Operation Modes'!D32,'Operation Modes'!$E$2,'Operation Modes'!E32,'Operation Modes'!$F$2,'Operation Modes'!F32,'Operation Modes'!$G$2,'Operation Modes'!G32,'Operation Modes'!$H$2,'Operation Modes'!H32,'Operation Modes'!$I$2,'Operation Modes'!I32,'Operation Modes'!$J$2,'Operation Modes'!J32,'Operation Modes'!$K$2,'Operation Modes'!K32,'Operation Modes'!$L$2,'Operation Modes'!L32,'Operation Modes'!$M$2,'Operation Modes'!M32,'Operation Modes'!$N$2,'Operation Modes'!N32) -> OPT
B32: TIMA0 | C32: OPT | D32: OPT | E32: OPT | F32: OPT | G32: OPT | H32: OPT | I32: OFF | J32: OFF | K32: OFF | L32: OFF | M32: OFF | N32: OFF | Q32: TIMA1 | R32: =_xlfn.SWITCH('Subsystem Inputs'!$B$2,'Operation Modes'!$C$2,'Operation Modes'!C33,'Operation Modes'!$D$2,'Operation Modes'!D33,'Operation Modes'!$E$2,'Operation Modes'!E33,'Operation Modes'!$F$2,'Operation Modes'!F33,'Operation Modes'!$G$2,'Operation Modes'!G33,'Operation Modes'!$H$2,'Operation Modes'!H33,'Operation Modes'!$I$2,'Operation Modes'!I33,'Operation Modes'!$J$2,'Operation Modes'!J33,'Operation Modes'!$K$2,'Operation Modes'!K33,'Operation Modes'!$L$2,'Operation Modes'!L33,'Operation Modes'!$M$2,'Operation Modes'!M33,'Operation Modes'!$N$2,'Operation Modes'!N33) -> OPT
B33: TIMA1 | C33: OPT | D33: OPT | E33: OPT | F33: OPT | G33: OPT | H33: OPT | I33: OFF | J33: OFF | K33: OFF | L33: OFF | M33: OFF | N33: OFF | Q33: TIMG6 | R33: =_xlfn.SWITCH('Subsystem Inputs'!$B$2,'Operation Modes'!$C$2,'Operation Modes'!C34,'Operation Modes'!$D$2,'Operation Modes'!D34,'Operation Modes'!$E$2,'Operation Modes'!E34,'Operation Modes'!$F$2,'Operation Modes'!F34,'Operation Modes'!$G$2,'Operation Modes'!G34,'Operation Modes'!$H$2,'Operation Modes'!H34,'Operation Modes'!$I$2,'Operation Modes'!I34,'Operation Modes'!$J$2,'Operation Modes'!J34,'Operation Modes'!$K$2,'Operation Modes'!K34,'Operation Modes'!$L$2,'Operation Modes'!L34,'Operation Modes'!$M$2,'Operation Modes'!M34,'Operation Modes'!$N$2,'Operation Modes'!N34) -> OPT
B34: TIMG6 | C34: OPT | D34: OPT | E34: OPT | F34: OPT | G34: OPT | H34: OPT | I34: OFF | J34: OFF | K34: OFF | L34: OFF | M34: OFF | N34: OFF | Q34: TIMG7 | R34: =_xlfn.SWITCH('Subsystem Inputs'!$B$2,'Operation Modes'!$C$2,'Operation Modes'!C35,'Operation Modes'!$D$2,'Operation Modes'!D35,'Operation Modes'!$E$2,'Operation Modes'!E35,'Operation Modes'!$F$2,'Operation Modes'!F35,'Operation Modes'!$G$2,'Operation Modes'!G35,'Operation Modes'!$H$2,'Operation Modes'!H35,'Operation Modes'!$I$2,'Operation Modes'!I35,'Operation Modes'!$J$2,'Operation Modes'!J35,'Operation Modes'!$K$2,'Operation Modes'!K35,'Operation Modes'!$L$2,'Operation Modes'!L35,'Operation Modes'!$M$2,'Operation Modes'!M35,'Operation Modes'!$N$2,'Operation Modes'!N35) -> OPT
B35: TIMG7 | C35: OPT | D35: OPT | E35: OPT | F35: OPT | G35: OPT | H35: OPT | I35: OFF | J35: OFF | K35: OFF | L35: OFF | M35: OFF | N35: OFF | Q35: TIMG1 | R35: =_xlfn.SWITCH('Subsystem Inputs'!$B$2,'Operation Modes'!$C$2,'Operation Modes'!C36,'Operation Modes'!$D$2,'Operation Modes'!D36,'Operation Modes'!$E$2,'Operation Modes'!E36,'Operation Modes'!$F$2,'Operation Modes'!F36,'Operation Modes'!$G$2,'Operation Modes'!G36,'Operation Modes'!$H$2,'Operation Modes'!H36,'Operation Modes'!$I$2,'Operation Modes'!I36,'Operation Modes'!$J$2,'Operation Modes'!J36,'Operation Modes'!$K$2,'Operation Modes'!K36,'Operation Modes'!$L$2,'Operation Modes'!L36,'Operation Modes'!$M$2,'Operation Modes'!M36,'Operation Modes'!$N$2,'Operation Modes'!N36) -> OPT
B36: TIMG1 | C36: OPT | D36: OPT | E36: OPT | F36: OPT | G36: OPT | H36: OPT | I36: OFF | J36: OFF | K36: OFF | L36: OFF | M36: OFF | N36: OFF | Q36: TIMG12 | R36: =_xlfn.SWITCH('Subsystem Inputs'!$B$2,'Operation Modes'!$C$2,'Operation Modes'!C37,'Operation Modes'!$D$2,'Operation Modes'!D37,'Operation Modes'!$E$2,'Operation Modes'!E37,'Operation Modes'!$F$2,'Operation Modes'!F37,'Operation Modes'!$G$2,'Operation Modes'!G37,'Operation Modes'!$H$2,'Operation Modes'!H37,'Operation Modes'!$I$2,'Operation Modes'!I37,'Operation Modes'!$J$2,'Operation Modes'!J37,'Operation Modes'!$K$2,'Operation Modes'!K37,'Operation Modes'!$L$2,'Operation Modes'!L37,'Operation Modes'!$M$2,'Operation Modes'!M37,'Operation Modes'!$N$2,'Operation Modes'!N37) -> OPT
B37: TIMG12 | C37: OPT | D37: OPT | E37: OPT | F37: OPT | G37: OPT | H37: OPT | I37: OFF | J37: OFF | K37: OFF | L37: OFF | M37: OFF | N37: OFF | Q37: TIMG0 | R37: =_xlfn.SWITCH('Subsystem Inputs'!$B$2,'Operation Modes'!$C$2,'Operation Modes'!C38,'Operation Modes'!$D$2,'Operation Modes'!D38,'Operation Modes'!$E$2,'Operation Modes'!E38,'Operation Modes'!$F$2,'Operation Modes'!F38,'Operation Modes'!$G$2,'Operation Modes'!G38,'Operation Modes'!$H$2,'Operation Modes'!H38,'Operation Modes'!$I$2,'Operation Modes'!I38,'Operation Modes'!$J$2,'Operation Modes'!J38,'Operation Modes'!$K$2,'Operation Modes'!K38,'Operation Modes'!$L$2,'Operation Modes'!L38,'Operation Modes'!$M$2,'Operation Modes'!M38,'Operation Modes'!$N$2,'Operation Modes'!N38) -> OPT
A38: PD0 Peripherals | B38: TIMG0 | C38: OPT | D38: OPT | E38: OPT | F38: OPT | G38: OPT | H38: OPT | I38: OPT | J38: OPT | K38: OPT | L38: OPT | M38: OPT | N38: OFF | Q38: TIMG8 | R38: =_xlfn.SWITCH('Subsystem Inputs'!$B$2,'Operation Modes'!$C$2,'Operation Modes'!C39,'Operation Modes'!$D$2,'Operation Modes'!D39,'Operation Modes'!$E$2,'Operation Modes'!E39,'Operation Modes'!$F$2,'Operation Modes'!F39,'Operation Modes'!$G$2,'Operation Modes'!G39,'Operation Modes'!$H$2,'Operation Modes'!H39,'Operation Modes'!$I$2,'Operation Modes'!I39,'Operation Modes'!$J$2,'Operation Modes'!J39,'Operation Modes'!$K$2,'Operation Modes'!K39,'Operation Modes'!$L$2,'Operation Modes'!L39,'Operation Modes'!$M$2,'Operation Modes'!M39,'Operation Modes'!$N$2,'Operation Modes'!N39) -> OPT
B39: TIMG8 | C39: OPT | D39: OPT | E39: OPT | F39: OPT | G39: OPT | H39: OPT | I39: OPT | J39: OPT | K39: OPT | L39: OPT | M39: OPT | N39: OFF | Q39: RTC | R39: =_xlfn.SWITCH('Subsystem Inputs'!$B$2,'Operation Modes'!$C$2,'Operation Modes'!C40,'Operation Modes'!$D$2,'Operation Modes'!D40,'Operation Modes'!$E$2,'Operation Modes'!E40,'Operation Modes'!$F$2,'Operation Modes'!F40,'Operation Modes'!$G$2,'Operation Modes'!G40,'Operation Modes'!$H$2,'Operation Modes'!H40,'Operation Modes'!$I$2,'Operation Modes'!I40,'Operation Modes'!$J$2,'Operation Modes'!J40,'Operation Modes'!$K$2,'Operation Modes'!K40,'Operation Modes'!$L$2,'Operation Modes'!L40,'Operation Modes'!$M$2,'Operation Modes'!M40,'Operation Modes'!$N$2,'Operation Modes'!N40) -> OPT
B40: RTC | C40: OPT | D40: OPT | E40: OPT | F40: OPT | G40: OPT | H40: OPT | I40: OPT | J40: OPT | K40: OPT | L40: OPT | M40: OPT | N40: OFF | Q40: UART0 | R40: =_xlfn.SWITCH('Subsystem Inputs'!$B$2,'Operation Modes'!$C$2,'Operation Modes'!C41,'Operation Modes'!$D$2,'Operation Modes'!D41,'Operation Modes'!$E$2,'Operation Modes'!E41,'Operation Modes'!$F$2,'Operation Modes'!F41,'Operation Modes'!$G$2,'Operation Modes'!G41,'Operation Modes'!$H$2,'Operation Modes'!H41,'Operation Modes'!$I$2,'Operation Modes'!I41,'Operation Modes'!$J$2,'Operation Modes'!J41,'Operation Modes'!$K$2,'Operation Modes'!K41,'Operation Modes'!$L$2,'Operation Modes'!L41,'Operation Modes'!$M$2,'Operation Modes'!M41,'Operation Modes'!$N$2,'Operation Modes'!N41) -> OPT
B41: UART0 | C41: OPT | D41: OPT | E41: OPT | F41: OPT | G41: OPT | H41: OPT | I41: OPT | J41: OPT | K41: OPT | L41: OPT | M41: OPT | N41: OFF | Q41: UART1 | R41: =_xlfn.SWITCH('Subsystem Inputs'!$B$2,'Operation Modes'!$C$2,'Operation Modes'!C42,'Operation Modes'!$D$2,'Operation Modes'!D42,'Operation Modes'!$E$2,'Operation Modes'!E42,'Operation Modes'!$F$2,'Operation Modes'!F42,'Operation Modes'!$G$2,'Operation Modes'!G42,'Operation Modes'!$H$2,'Operation Modes'!H42,'Operation Modes'!$I$2,'Operation Modes'!I42,'Operation Modes'!$J$2,'Operation Modes'!J42,'Operation Modes'!$K$2,'Operation Modes'!K42,'Operation Modes'!$L$2,'Operation Modes'!L42,'Operation Modes'!$M$2,'Operation Modes'!M42,'Operation Modes'!$N$2,'Operation Modes'!N42) -> OPT
B42: UART1 | C42: OPT | D42: OPT | E42: OPT | F42: OPT | G42: OPT | H42: OPT | I42: OPT | J42: OPT | K42: OPT | L42: OPT | M42: OPT | N42: OFF | Q42: UART2 | R42: =_xlfn.SWITCH('Subsystem Inputs'!$B$2,'Operation Modes'!$C$2,'Operation Modes'!C43,'Operation Modes'!$D$2,'Operation Modes'!D43,'Operation Modes'!$E$2,'Operation Modes'!E43,'Operation Modes'!$F$2,'Operation Modes'!F43,'Operation Modes'!$G$2,'Operation Modes'!G43,'Operation Modes'!$H$2,'Operation Modes'!H43,'Operation Modes'!$I$2,'Operation Modes'!I43,'Operation Modes'!$J$2,'Operation Modes'!J43,'Operation Modes'!$K$2,'Operation Modes'!K43,'Operation Modes'!$L$2,'Operation Modes'!L43,'Operation Modes'!$M$2,'Operation Modes'!M43,'Operation Modes'!$N$2,'Operation Modes'!N43) -> OPT
B43: UART2 | C43: OPT | D43: OPT | E43: OPT | F43: OPT | G43: OPT | H43: OPT | I43: OPT | J43: OPT | K43: OPT | L43: OPT | M43: OPT | N43: OFF | Q43: I2C0 | R43: =_xlfn.SWITCH('Subsystem Inputs'!$B$2,'Operation Modes'!$C$2,'Operation Modes'!C44,'Operation Modes'!$D$2,'Operation Modes'!D44,'Operation Modes'!$E$2,'Operation Modes'!E44,'Operation Modes'!$F$2,'Operation Modes'!F44,'Operation Modes'!$G$2,'Operation Modes'!G44,'Operation Modes'!$H$2,'Operation Modes'!H44,'Operation Modes'!$I$2,'Operation Modes'!I44,'Operation Modes'!$J$2,'Operation Modes'!J44,'Operation Modes'!$K$2,'Operation Modes'!K44,'Operation Modes'!$L$2,'Operation Modes'!L44,'Operation Modes'!$M$2,'Operation Modes'!M44,'Operation Modes'!$N$2,'Operation Modes'!N44) -> OPT
B44: I2C0 | C44: OPT | D44: OPT | E44: OPT | F44: OPT | G44: OPT | H44: OPT | I44: OPT | J44: OPT | K44: OPT | L44: OPT | M44: OPT | N44: OFF | Q44: I2C1 | R44: =_xlfn.SWITCH('Subsystem Inputs'!$B$2,'Operation Modes'!$C$2,'Operation Modes'!C45,'Operation Modes'!$D$2,'Operation Modes'!D45,'Operation Modes'!$E$2,'Operation Modes'!E45,'Operation Modes'!$F$2,'Operation Modes'!F45,'Operation Modes'!$G$2,'Operation Modes'!G45,'Operation Modes'!$H$2,'Operation Modes'!H45,'Operation Modes'!$I$2,'Operation Modes'!I45,'Operation Modes'!$J$2,'Operation Modes'!J45,'Operation Modes'!$K$2,'Operation Modes'!K45,'Operation Modes'!$L$2,'Operation Modes'!L45,'Operation Modes'!$M$2,'Operation Modes'!M45,'Operation Modes'!$N$2,'Operation Modes'!N45) -> OPT
B45: I2C1 | C45: OPT | D45: OPT | E45: OPT | F45: OPT | G45: OPT | H45: OPT | I45: OPT | J45: OPT | K45: OPT | L45: OPT | M45: OPT | N45: OFF | Q45: GPIOA | R45: =_xlfn.SWITCH('Subsystem Inputs'!$B$2,'Operation Modes'!$C$2,'Operation Modes'!C46,'Operation Modes'!$D$2,'Operation Modes'!D46,'Operation Modes'!$E$2,'Operation Modes'!E46,'Operation Modes'!$F$2,'Operation Modes'!F46,'Operation Modes'!$G$2,'Operation Modes'!G46,'Operation Modes'!$H$2,'Operation Modes'!H46,'Operation Modes'!$I$2,'Operation Modes'!I46,'Operation Modes'!$J$2,'Operation Modes'!J46,'Operation Modes'!$K$2,'Operation Modes'!K46,'Operation Modes'!$L$2,'Operation Modes'!L46,'Operation Modes'!$M$2,'Operation Modes'!M46,'Operation Modes'!$N$2,'Operation Modes'!N46) -> OPT
B46: GPIOA | C46: OPT | D46: OPT | E46: OPT | F46: OPT | G46: OPT | H46: OPT | I46: OPT | J46: OPT | K46: OPT | L46: OPT | M46: OPT | N46: OFF | Q46: GPIOB | R46: =_xlfn.SWITCH('Subsystem Inputs'!$B$2,'Operation Modes'!$C$2,'Operation Modes'!C47,'Operation Modes'!$D$2,'Operation Modes'!D47,'Operation Modes'!$E$2,'Operation Modes'!E47,'Operation Modes'!$F$2,'Operation Modes'!F47,'Operation Modes'!$G$2,'Operation Modes'!G47,'Operation Modes'!$H$2,'Operation Modes'!H47,'Operation Modes'!$I$2,'Operation Modes'!I47,'Operation Modes'!$J$2,'Operation Modes'!J47,'Operation Modes'!$K$2,'Operation Modes'!K47,'Operation Modes'!$L$2,'Operation Modes'!L47,'Operation Modes'!$M$2,'Operation Modes'!M47,'Operation Modes'!$N$2,'Operation Modes'!N47) -> OPT
B47: GPIOB | C47: OPT | D47: OPT | E47: OPT | F47: OPT | G47: OPT | H47: OPT | I47: OPT | J47: OPT | K47: OPT | L47: OPT | M47: OPT | N47: OFF | Q47: WWDT0 | R47: =_xlfn.SWITCH('Subsystem Inputs'!$B$2,'Operation Modes'!$C$2,'Operation Modes'!C48,'Operation Modes'!$D$2,'Operation Modes'!D48,'Operation Modes'!$E$2,'Operation Modes'!E48,'Operation Modes'!$F$2,'Operation Modes'!F48,'Operation Modes'!$G$2,'Operation Modes'!G48,'Operation Modes'!$H$2,'Operation Modes'!H48,'Operation Modes'!$I$2,'Operation Modes'!I48,'Operation Modes'!$J$2,'Operation Modes'!J48,'Operation Modes'!$K$2,'Operation Modes'!K48,'Operation Modes'!$L$2,'Operation Modes'!L48,'Operation Modes'!$M$2,'Operation Modes'!M48,'Operation Modes'!$N$2,'Operation Modes'!N48) -> OPT
B48: WWDT0 | C48: OPT | D48: OPT | E48: OPT | F48: OPT | G48: OPT | H48: OPT | I48: OPT | J48: OPT | K48: OPT | L48: OPT | M48: DIS | N48: OFF | Q48: WWDT1 | R48: =_xlfn.SWITCH('Subsystem Inputs'!$B$2,'Operation Modes'!$C$2,'Operation Modes'!C49,'Operation Modes'!$D$2,'Operation Modes'!D49,'Operation Modes'!$E$2,'Operation Modes'!E49,'Operation Modes'!$F$2,'Operation Modes'!F49,'Operation Modes'!$G$2,'Operation Modes'!G49,'Operation Modes'!$H$2,'Operation Modes'!H49,'Operation Modes'!$I$2,'Operation Modes'!I49,'Operation Modes'!$J$2,'Operation Modes'!J49,'Operation Modes'!$K$2,'Operation Modes'!K49,'Operation Modes'!$L$2,'Operation Modes'!L49,'Operation Modes'!$M$2,'Operation Modes'!M49,'Operation Modes'!$N$2,'Operation Modes'!N49) -> OPT
B49: WWDT1 | C49: OPT | D49: OPT | E49: OPT | F49: OPT | G49: OPT | H49: OPT | I49: OPT | J49: OPT | K49: OPT | L49: OPT | M49: DIS | N49: OFF | Q49: TRNG | R49: =_xlfn.SWITCH('Subsystem Inputs'!$B$2,'Operation Modes'!$C$2,'Operation Modes'!C50,'Operation Modes'!$D$2,'Operation Modes'!D50,'Operation Modes'!$E$2,'Operation Modes'!E50,'Operation Modes'!$F$2,'Operation Modes'!F50,'Operation Modes'!$G$2,'Operation Modes'!G50,'Operation Modes'!$H$2,'Operation Modes'!H50,'Operation Modes'!$I$2,'Operation Modes'!I50,'Operation Modes'!$J$2,'Operation Modes'!J50,'Operation Modes'!$K$2,'Operation Modes'!K50,'Operation Modes'!$L$2,'Operation Modes'!L50,'Operation Modes'!$M$2,'Operation Modes'!M50,'Operation Modes'!$N$2,'Operation Modes'!N50) -> OPT
A50: Analog | B50: TRNG | C50: OPT | D50: OPT | E50: OPT | F50: OPT | G50: OPT | H50: OPT | I50: OFF | J50: OFF | K50: OFF | L50: OFF | M50: OFF | N50: OFF | Q50: ADC0 | R50: =_xlfn.SWITCH('Subsystem Inputs'!$B$2,'Operation Modes'!$C$2,'Operation Modes'!C51,'Operation Modes'!$D$2,'Operation Modes'!D51,'Operation Modes'!$E$2,'Operation Modes'!E51,'Operation Modes'!$F$2,'Operation Modes'!F51,'Operation Modes'!$G$2,'Operation Modes'!G51,'Operation Modes'!$H$2,'Operation Modes'!H51,'Operation Modes'!$I$2,'Operation Modes'!I51,'Operation Modes'!$J$2,'Operation Modes'!J51,'Operation Modes'!$K$2,'Operation Modes'!K51,'Operation Modes'!$L$2,'Operation Modes'!L51,'Operation Modes'!$M$2,'Operation Modes'!M51,'Operation Modes'!$N$2,'Operation Modes'!N51) -> OPT
B51: ADC0 | C51: OPT | D51: OPT | E51: OPT | F51: OPT | G51: OPT | H51: OPT | I51: OPT | J51: OPT | K51: NS (triggers supported) | L51: NS (triggers supported) | M51: NS (triggers supported) | N51: OFF | Q51: ADC1 | R51: =_xlfn.SWITCH('Subsystem Inputs'!$B$2,'Operation Modes'!$C$2,'Operation Modes'!C52,'Operation Modes'!$D$2,'Operation Modes'!D52,'Operation Modes'!$E$2,'Operation Modes'!E52,'Operation Modes'!$F$2,'Operation Modes'!F52,'Operation Modes'!$G$2,'Operation Modes'!G52,'Operation Modes'!$H$2,'Operation Modes'!H52,'Operation Modes'!$I$2,'Operation Modes'!I52,'Operation Modes'!$J$2,'Operation Modes'!J52,'Operation Modes'!$K$2,'Operation Modes'!K52,'Operation Modes'!$L$2,'Operation Modes'!L52,'Operation Modes'!$M$2,'Operation Modes'!M52,'Operation Modes'!$N$2,'Operation Modes'!N52) -> OPT
B52: ADC1 | C52: OPT | D52: OPT | E52: OPT | F52: OPT | G52: OPT | H52: OPT | I52: OPT | J52: OPT | K52: NS (triggers supported) | L52: NS (triggers supported) | M52: NS (triggers supported) | N52: OFF | Q52: DAC0 | R52: =_xlfn.SWITCH('Subsystem Inputs'!$B$2,'Operation Modes'!$C$2,'Operation Modes'!C53,'Operation Modes'!$D$2,'Operation Modes'!D53,'Operation Modes'!$E$2,'Operation Modes'!E53,'Operation Modes'!$F$2,'Operation Modes'!F53,'Operation Modes'!$G$2,'Operation Modes'!G53,'Operation Modes'!$H$2,'Operation Modes'!H53,'Operation Modes'!$I$2,'Operation Modes'!I53,'Operation Modes'!$J$2,'Operation Modes'!J53,'Operation Modes'!$K$2,'Operation Modes'!K53,'Operation Modes'!$L$2,'Operation Modes'!L53,'Operation Modes'!$M$2,'Operation Modes'!M53,'Operation Modes'!$N$2,'Operation Modes'!N53) -> OPT
B53: DAC0 | C53: OPT | D53: OPT | E53: OPT | F53: OPT | G53: OPT | H53: OPT | I53: OPT | J53: OPT | K53: NS | L53: NS | M53: NS | N53: OFF | Q53: OPA0 | R53: =_xlfn.SWITCH('Subsystem Inputs'!$B$2,'Operation Modes'!$C$2,'Operation Modes'!C54,'Operation Modes'!$D$2,'Operation Modes'!D54,'Operation Modes'!$E$2,'Operation Modes'!E54,'Operation Modes'!$F$2,'Operation Modes'!F54,'Operation Modes'!$G$2,'Operation Modes'!G54,'Operation Modes'!$H$2,'Operation Modes'!H54,'Operation Modes'!$I$2,'Operation Modes'!I54,'Operation Modes'!$J$2,'Operation Modes'!J54,'Operation Modes'!$K$2,'Operation Modes'!K54,'Operation Modes'!$L$2,'Operation Modes'!L54,'Operation Modes'!$M$2,'Operation Modes'!M54,'Operation Modes'!$N$2,'Operation Modes'!N54) -> OPT
B54: OPA0 | C54: OPT | D54: NS | E54: NS | F54: OPT | G54: NS | H54: NS | I54: OPT | K54: NS | L54: NS | M54: NS | N54: OFF | Q54: OPA1 | R54: =_xlfn.SWITCH('Subsystem Inputs'!$B$2,'Operation Modes'!$C$2,'Operation Modes'!C55,'Operation Modes'!$D$2,'Operation Modes'!D55,'Operation Modes'!$E$2,'Operation Modes'!E55,'Operation Modes'!$F$2,'Operation Modes'!F55,'Operation Modes'!$G$2,'Operation Modes'!G55,'Operation Modes'!$H$2,'Operation Modes'!H55,'Operation Modes'!$I$2,'Operation Modes'!I55,'Operation Modes'!$J$2,'Operation Modes'!J55,'Operation Modes'!$K$2,'Operation Modes'!K55,'Operation Modes'!$L$2,'Operation Modes'!L55,'Operation Modes'!$M$2,'Operation Modes'!M55,'Operation Modes'!$N$2,'Operation Modes'!N55) -> OPT
B55: OPA1 | C55: OPT | D55: NS | E55: NS | F55: OPT | G55: NS | H55: NS | I55: OPT | K55: NS | L55: NS | M55: NS | N55: OFF | Q55: GPAMP | R55: =_xlfn.SWITCH('Subsystem Inputs'!$B$2,'Operation Modes'!$C$2,'Operation Modes'!C56,'Operation Modes'!$D$2,'Operation Modes'!D56,'Operation Modes'!$E$2,'Operation Modes'!E56,'Operation Modes'!$F$2,'Operation Modes'!F56,'Operation Modes'!$G$2,'Operation Modes'!G56,'Operation Modes'!$H$2,'Operation Modes'!H56,'Operation Modes'!$I$2,'Operation Modes'!I56,'Operation Modes'!$J$2,'Operation Modes'!J56,'Operation Modes'!$K$2,'Operation Modes'!K56,'Operation Modes'!$L$2,'Operation Modes'!L56,'Operation Modes'!$M$2,'Operation Modes'!M56,'Operation Modes'!$N$2,'Operation Modes'!N56) -> OPT
B56: GPAMP | C56: OPT | D56: OPT | E56: OPT | F56: OPT | G56: OPT | H56: OPT | I56: OPT | J56: OPT | K56: NS | L56: NS | M56: NS | N56: OFF | Q56: COMP0 | R56: =_xlfn.SWITCH('Subsystem Inputs'!$B$2,'Operation Modes'!$C$2,'Operation Modes'!C57,'Operation Modes'!$D$2,'Operation Modes'!D57,'Operation Modes'!$E$2,'Operation Modes'!E57,'Operation Modes'!$F$2,'Operation Modes'!F57,'Operation Modes'!$G$2,'Operation Modes'!G57,'Operation Modes'!$H$2,'Operation Modes'!H57,'Operation Modes'!$I$2,'Operation Modes'!I57,'Operation Modes'!$J$2,'Operation Modes'!J57,'Operation Modes'!$K$2,'Operation Modes'!K57,'Operation Modes'!$L$2,'Operation Modes'!L57,'Operation Modes'!$M$2,'Operation Modes'!M57,'Operation Modes'!$N$2,'Operation Modes'!N57) -> OPT
B57: COMP0 | C57: OPT | D57: OPT | E57: OPT | F57: OPT | G57: OPT | H57: OPT | I57: OPT | J57: OPT | K57: OPT | L57: OPT | M57: OPT | N57: OFF | Q57: COMP1 | R57: =_xlfn.SWITCH('Subsystem Inputs'!$B$2,'Operation Modes'!$C$2,'Operation Modes'!C58,'Operation Modes'!$D$2,'Operation Modes'!D58,'Operation Modes'!$E$2,'Operation Modes'!E58,'Operation Modes'!$F$2,'Operation Modes'!F58,'Operation Modes'!$G$2,'Operation Modes'!G58,'Operation Modes'!$H$2,'Operation Modes'!H58,'Operation Modes'!$I$2,'Operation Modes'!I58,'Operation Modes'!$J$2,'Operation Modes'!J58,'Operation Modes'!$K$2,'Operation Modes'!K58,'Operation Modes'!$L$2,'Operation Modes'!L58,'Operation Modes'!$M$2,'Operation Modes'!M58,'Operation Modes'!$N$2,'Operation Modes'!N58) -> OPT
B58: COMP1 | C58: OPT | D58: OPT | E58: OPT | F58: OPT | G58: OPT | H58: OPT | I58: OPT | J58: OPT | K58: OPT | L58: OPT | M58: OPT | N58: OFF | Q58: COMP2 | R58: =_xlfn.SWITCH('Subsystem Inputs'!$B$2,'Operation Modes'!$C$2,'Operation Modes'!C59,'Operation Modes'!$D$2,'Operation Modes'!D59,'Operation Modes'!$E$2,'Operation Modes'!E59,'Operation Modes'!$F$2,'Operation Modes'!F59,'Operation Modes'!$G$2,'Operation Modes'!G59,'Operation Modes'!$H$2,'Operation Modes'!H59,'Operation Modes'!$I$2,'Operation Modes'!I59,'Operation Modes'!$J$2,'Operation Modes'!J59,'Operation Modes'!$K$2,'Operation Modes'!K59,'Operation Modes'!$L$2,'Operation Modes'!L59,'Operation Modes'!$M$2,'Operation Modes'!M59,'Operation Modes'!$N$2,'Operation Modes'!N59) -> OPT
B59: COMP2 | C59: OPT | D59: OPT | E59: OPT | F59: OPT | G59: OPT | H59: OPT | I59: OPT | J59: OPT | K59: OPT | L59: OPT | M59: OPT | N59: OFF | Q59: IO MUX and Wakeup | R59: =_xlfn.SWITCH('Subsystem Inputs'!$B$2,'Operation Modes'!$C$2,'Operation Modes'!C60,'Operation Modes'!$D$2,'Operation Modes'!D60,'Operation Modes'!$E$2,'Operation Modes'!E60,'Operation Modes'!$F$2,'Operation Modes'!F60,'Operation Modes'!$G$2,'Operation Modes'!G60,'Operation Modes'!$H$2,'Operation Modes'!H60,'Operation Modes'!$I$2,'Operation Modes'!I60,'Operation Modes'!$J$2,'Operation Modes'!J60,'Operation Modes'!$K$2,'Operation Modes'!K60,'Operation Modes'!$L$2,'Operation Modes'!L60,'Operation Modes'!$M$2,'Operation Modes'!M60,'Operation Modes'!$N$2,'Operation Modes'!N60) -> EN
A60: IO MUX and IO Wakeup | C60: EN | D60: EN | E60: EN | F60: EN | G60: EN | H60: EN | I60: EN | J60: EN | K60: EN | L60: EN | M60: EN | N60: DIS w/WAKE | Q60: VDD PRGM/ERASE | R60: ='Subsystem Inputs'!B5 -> 3.3
Q61: FLASH PGM | R61: OPT
Q62: FLASH ERASE | R62: OPT
H64: =_xlfn.SWITCH('Operation Modes'!R2,'Operation Modes'!T2,'Operation Modes'!F65,'Operation Modes'!T3,'Operation Modes'!F65,'Operation Modes'!T4,'Drop Down Lists'!F3:F5,'Operation Modes'!T5,'Operation Modes'!F65) -> 0

Sheet External Data Aquisition (hidden)
A28: External DMM Data Acquisition
A30: Target Device | B30: Port | C30: Baud Rate | D30: Measurement | E30: Acq. Frequency | F30: Operation Mode | G30: Add Active Peripherals
A31: DMM1 | B31: 2 | C31: 9600 | D31: Current | E31: Single Shot | F31: Run 0 | G31: Add a Peripheral
G32: GPIOB

Sheet Drop Down Lists (hidden)
A1: Clocks and Scenario Options
A2: Ambient Temperature | B2: Operation Mode | C2: Mem Exec. Source | D2: SYSPLL | E2: MCLK Frequency | F2: SYSOSC | G2: HFXT | H2: MFCLK | I2: MFPCLK | J2: LFCLK Monitor | K2: ULPCLK Freq | L2: LFOSC/ LFXT | M2: DMA | N2: Unused Pin Configuration
A3: -40C | B3: Run 0 | C3: Flash | D3: --Select Option-- | E3: 80 MHz | F3: --Select Option-- | G3: --Select Option-- | H3: --Select Option-- | I3: --Select Option-- | J3: --Select Option-- | K3: 4MHz | L3: --Select Option-- | M3: --Select Option-- | N3: Direction | O3: Configure Output
A4: 25C | B4: Run 1 | C4: SRAM | D4: EN | E4: 48 MHz | F4: EN | G4: EN | H4: EN | I4: EN | J4: EN | K4: 32kHz | L4: LFOSC | M4: EN | N4: --Select Option-- | O4: --Select Option--
A5: 85C | B5: Run 2 | D5: DIS | E5: 32 MHz | F5: DIS | G5: DIS | H5: DIS | I5: DIS | J5: DIS | L5: LFXT | M5: DIS | N5: Output | O5: Low
A6: 105C | B6: Sleep 0 | C6: EN | D6: SYSPLL FREQ | E6: 4 MHz | F6: SYSOSC FREQ | G6: HFXT Freq Source | N6: Input | O6: High
A7: 125C | B7: Sleep 1 | C7: DIS | D7: --Select Frequency-- | E7: MCLK Monitor | F7: --Select Frequency-- | G7: --Select Frequency-- | O7: --Select Option--
B8: Sleep 2 | D8: 48 MHz | E8: --Select Option-- | F8: 32MHz | G8: 4MHz | O8: No Resistor
B9: Stop 0 | C9: tPROG (WORD, 64) | D9: 80 MHz | E9: EN | F9: 4MHz | G9: 48MHz | O9: Pull-Up Resistor
B10: Stop 1 | C10: tPROG (SEC, 64) | E10: DIS | O10: Pull-Down Resistor
B11: Stop 2 | C11: tERASE (SEC)
B12: Standby 0 | C12: tERASE (BANK)
B13: Standby 1
B14: Shutdown
A16: PD1
A17: CRC | B17: UART3 | C17: SPI0 | D17: SPI1 | E17: MATHACL | F17: AES | G17: MCAN0 | H17: TIMA0 | I17: TIMA1 | J17: TIMG6 | K17: TIMG7 | L17: TIMG1 | M17: TIMG12
A18: --Select Option-- | B18: --Select Option-- | C18: --Select Option-- | D18: --Select Option-- | E18: --Select Option-- | F18: --Select Option-- | G18: --Select Option-- | H18: --Select Option-- | I18: --Select Option-- | J18: --Select Option-- | K18: --Select Option-- | L18: --Select Option-- | M18: --Select Option--
A19: EN | B19: EN | C19: EN | D19: EN | E19: EN | F19: EN | G19: EN | H19: EN | I19: EN | J19: EN | K19: EN | L19: EN | M19: EN
A20: DIS | B20: DIS | C20: DIS | D20: DIS | E20: DIS | F20: DIS | G20: DIS | H20: DIS | I20: DIS | J20: DIS | K20: DIS | L20: DIS | M20: DIS
B21: UART Data Rate | C21: SPI Data Rate
B22: --Select Data Rate-- | C22: --Select Data Rate-- | D22: --Select Data Rate--
B23: 80 MHz | C23: 1MHz | D23: 1MHz
B24: 40 MHz | C24: 2MHz | D24: 2MHz
B25: 10 MHz | C25: 4MHz | D25: 4MHz
B26: 5 MHz | C26: 8MHz | D26: 8MHz
C27: 16MHz | D27: 16MHz
C28: TX/RX Mode
C29: Single Shot | D29: Single Shot
C30: Continuous | D30: Continuous
A32: PD0
A33: TIMG0 | B33: TIMG8 | C33: RTC | D33: UART0 | E33: UART1 | F33: UART2 | G33: I2C0 | H33: I2C1 | I33: GPIOA | J33: GPIOB | L33: WWDT0 | M33: WWDT1
A34: --Select Option-- | B34: --Select Option-- | C34: --Select Option-- | D34: --Select Option-- | E34: --Select Option-- | F34: --Select Option-- | G34: --Select Option-- | H34: --Select Option-- | I34: --Select Option-- | J34: --Select Option-- | L34: --Select Option-- | M34: --Select Option--
A35: EN | B35: EN | C35: EN | D35: EN | E35: EN | F35: EN | G35: EN | H35: EN | I35: EN | J35: EN | L35: EN | M35: EN
A36: DIS | B36: DIS | C36: DIS | D36: DIS | E36: DIS | F36: DIS | G36: DIS | H36: DIS | I36: DIS | J36: DIS | L36: DIS | M36: DIS
C37: RTC Interrupt Freq | D37: UART Data Rate | G37: I2C Modes | I37: GPIO Type | J37: Drive Strength | K37: GPIO Status | L37: Mode | M37: CLKDIV | N37: PER Count
C38: --Select Interrupt Freq-- | D38: --Select Data Rate-- | E38: --Select Data Rate-- | F38: --Select Data Rate-- | G38: --Select Option-- | H38: --Select Option-- | I38: --Select Option-- | J38: --Select Option-- | K38: Low | L38: --Select Option-- | M38: DIV = 1 | N38: 0 | O38: =2^25 -> 33554432
C39: 0.5Hz | D39: 80 MHz | E39: 80 MHz | F39: 80 MHz | G39: Standard Mode | H39: Controller Mode | I39: Standard Drive (SDIO) | J39: 1.5 mA | K39: High | L39: Watchdog | M39: DIV = 2 | N39: 1 | O39: =2^21 -> 2097152
C40: 1 Hz | D40: 40 MHz | E40: 40 MHz | F40: 40 MHz | G40: Fast Mode | H40: Target Mode | I40: High Speed (HSIO) | J40: 2 mA | K40: High-Z | L40: Interval | M40: DIV = 3 | N40: 2 | O40: =2^18 -> 262144
C41: 2 Hz | D41: 10 MHz | E41: 10 MHz | F41: 10 MHz | G41: Fast Mode Plus | I41: High Drive (HDIO) | J41: 6 mA | M41: DIV = 4 | N41: 3 | O41: =2^15 -> 32768
C42: 4 Hz | D42: 5 MHz | E42: 5 MHz | F42: 5 MHz | G42: I2C Data Rate | I42: 5V Open Drain (ODIO) | J42: --Select Option-- | K42: High Speed (HSIO) | M42: DIV = 5 | N42: 4 | O42: =2^12 -> 4096
C43: 8 Hz | G43: Standard | H43: --Select Option-- | J43: 1.5 mA | M43: DIV = 6 | N43: 5 | O43: =2^10 -> 1024
C44: 16 Hz | H44: 2 MHz | J44: 2 mA | M44: DIV = 7 | N44: 6 | O44: =2^8 -> 256
C45: 32 Hz | H45: 32 MHz | J45: 3 mA | M45: DIV = 8 | N45: 7 | O45: =2^6 -> 64
C46: 64 Hz | G46: Fast Mode | H46: --Select Option-- | J46: 4 mA
C47: 128 Hz | H47: 8 MHz | J47: 6 mA
C48: 256 Hz | H48: 32 MHz | J48: --Select Option-- | K48: High Drive (HDIO)
C49: 512 Hz | G49: Fast Mode Plus | H49: --Select Option-- | J49: 2 mA
C50: 1024 Hz | H50: 20 MHz | J50: 6 mA
C51: 2048 Hz | H51: 32 MHz | J51: 10 mA
C52: 4096 Hz | J52: 20 mA
J53: --Select Option-- | K53: 5V Open Drain (ODIO)
J54: 4 mA
J55: 8 mA
A57: ANALOG | L57: Mode Duty Percentages
A58: TRNG | B58: ADC0 | C58: ADC1 | D58: DAC0 | E58: OPA0 | F58: OPA1 | G58: GPAMP | H58: COMPARATOR 0 | I58: COMPARATOR 1 | J58: COMPARATOR 2 | L58: 5
A59: --Select Option-- | B59: --Select Option-- | C59: --Select Option-- | D59: --Select Option-- | E59: --Select Option-- | F59: --Select Option-- | G59: --Select Option-- | H59: --Select Option-- | I59: --Select Option-- | J59: --Select Option-- | L59: 10
A60: EN | B60: EN | C60: EN | D60: EN | E60: EN | F60: EN | G60: EN | H60: EN | I60: EN | J60: EN | L60: 15
A61: DIS | B61: DIS | C61: DIS | D61: DIS | E61: DIS | F61: DIS | G61: DIS | H61: DIS | I61: DIS | J61: DIS | L61: 20
B62: Sample FREQ | D62: VREF | E62: OPA Modes | G62: RRI Status | H62: COMP MODE | L62: 25
B63: --Select Sample Speed-- | C63: --Select Sample Speed-- | D63: --Select Option-- | E63: --Select Option-- | F63: --Select Option-- | G63: --Select Option-- | H63: --Select Option-- | I63: --Select Option-- | J63: --Select Option-- | L63: 30
B64: 4MSPS | C64: 4MSPS | D64: INT 1.4V | E64: RRI = 0x0, GBW = 0x0 | F64: RRI = 0x0, GBW = 0x0 | G64: 0x00 | H64: High Speed Mode w/DAC | I64: High Speed Mode w/DAC | J64: High Speed Mode w/DAC | L64: 35
B65: 5.3MSPS | C65: 5.3MSPS | D65: INT 2.5V | E65: RRI = 0x0, GBW = 0x01 | F65: RRI = 0x0, GBW = 0x01 | G65: 0x01 or 0x02 | H65: Low Power Mode w/DAC | I65: Low Power Mode w/DAC | J65: Low Power Mode w/DAC | L65: 40
B66: VREF | D66: EXT VDD | E66: RRI = 0x1, GBW = 0x0 | F66: RRI = 0x1, GBW = 0x0 | H66: High Speed Mode Comp Only | I66: High Speed Mode Comp Only | J66: High Speed Mode Comp Only | L66: 45
B67: --Select VREF Source-- | C67: --Select VREF Source-- | D67: Output Code | E67: RRI = 0x1, GBW = 0x01 | F67: RRI = 0x1, GBW = 0x01 | H67: Low Power Mode Comp Only | I67: Low Power Mode Comp Only | J67: Low Power Mode Comp Only | L67: 50
B68: 1.4V Internal | C68: 1.4V Internal | D68: --Select Option-- | L68: 55
B69: 2.5V Internal | C69: 2.5V Internal | D69: ? | L69: 60
B70: External | C70: External | D70: ? | L70: 65
B71: Duty Cycle % | D71: ? | L71: 70
B72: --Select % On Time-- | C72: --Select % On Time-- | D72: Load Resistance | L72: 75
B73: 5 | C73: 5 | D73: --Select Option-- | L73: 80
B74: 10 | C74: 10 | D74: ? | L74: 85
B75: 15 | C75: 15 | D75: ? | L75: 90
B76: 20 | C76: 20 | D76: ? | L76: 95
B77: 25 | C77: 25 | L77: 100
B78: 30 | C78: 30
B79: 35 | C79: 35
B80: 40 | C80: 40
B81: 45 | C81: 45
B82: 50 | C82: 50
B83: 55 | C83: 55
B84: 60 | C84: 60
B85: 65 | C85: 65
B86: 70 | C86: 70
B87: 75 | C87: 75
B88: 80 | C88: 80
B89: 85 | C89: 85
B90: 90 | C90: 90
B91: 95 | C91: 95
B92: 100 | C92: 100

Sheet Working Sheet (hidden)
A1: Peripheral Testing Needs | B1: Owner | C1: ADC
A2: TIMG, TIMA | B2: Diego | C2: Conversion Mode | D2: ADC Clock Source | E2: Sample Clock Divider | F2: Supplied Operational Voltage | G2: Reference Voltage | H2: Averaging Mode | I2: Burn Out Current Source | J2: Window Comparator mode | K2: Sampling Resolution | L2: DMA or CPU transfer
A3: UART 0,1,2,3 | B3: Diego | C3: Single | D3: SYSOSC | E3: 1 | F3: 1.62 | G3: Internal 2.5V | H3: On | I3: Enable | J3: Enabled | K3: 14
A4: GPIO A | C4: Sequence | D4: ULPCLK | E4: 2 | F4: … | G4: Internal 1.4V | H4: Off | I4: Disable | J4: Disabled | K4: 12
A5: GPIO B | C5: Simultaneous | D5: HFCLK | E5: 4 | F5: … | G5: External | K5: 10
A6: WWDT 0 | B6: Dennis | E6: 8 | F6: 3.6V | H6: Hardware Averaging Numerator | K6: 8
A7: WWDT 1 | B7: Dennis | C7: SYSOSC | D7: 32 MHz | E7: 16 | H7: 2
A8: MATHACL | B8: Brian | C8: ULPCLK | D8: 32 MHz | E8: 24 | H8: 4
A9: AES | B9: Rakesh's team | C9: HFCLK | E9: 32 | H9: 8
A10: MCAN0 | B10: Rakesh's team | E10: 48 | H10: 16
A11: CRC | B11: Rakesh's team | H11: 32
A12: RTC | B12: Rakesh's team | H12: 64
A13: LFCLK Monitor | H13: 128
A14: MCLK Monitor
A15: I2C0 | B15: Brian | D15: I2C | H15: Hardware Averaging Denominator
A16: I2C1 | B16: Brian | D16: Mode | E16: CLK Configuration | F16: Data Sent | H16: 1
A17: ADC0 | B17: Prashant | D17: Controller | E17: Standard (100kHz) | F17: 0xFF, 0xFF, 0xFF, 0xFF, 0xFF, 0xFF, 0xFF, 0xFF | H17: 2
A18: ADC1 | B18: Prashant | D18: Target | E18: Fast Mode (400kHz) | H18: 4
A19: SPI 0 | B19: Brian | E19: Fast Mode Plus (1MHz) | H19: 8
A20: SPI 1 | B20: Brian | H20: 16
A21: DAC | B21: Brian/Prashant | H21: 32
H22: 64
D23: DAC what code it is | H23: 128
B26: Don’t Care | C26: Run 0 | D26: Run 0 | E26: Sleep 0 | F26: Run 0 | G26: Stop 0 | H26: Run 0
B27: Valid Transition | C27: Run 0 | D27: Run 1 | E27: Sleep 0 | F27: Run 1 | G27: Stop 0 | H27: Run 1
B28: Invalid Transition | C28: Run 0 | D28: Run 2 | E28: Sleep 0 | F28: Run 2 | G28: Stop 0 | H28: Run 2
C29: Run 0 | D29: Sleep 0 | E29: Sleep 0 | F29: Sleep 0 | G29: Stop 0 | H29: Sleep 0
C30: Run 0 | D30: Sleep 1 | E30: Sleep 0 | F30: Sleep 1 | G30: Stop 0 | H30: Sleep 1
C31: Run 0 | D31: Sleep 2 | E31: Sleep 0 | F31: Sleep 2 | G31: Stop 0 | H31: Sleep 2
C32: Run 0 | D32: Stop 0 | E32: Sleep 0 | F32: Stop 0 | G32: Stop 0 | H32: Stop 0
C33: Run 0 | D33: Stop 1 | E33: Sleep 0 | F33: Stop 1 | G33: Stop 0 | H33: Stop 1
C34: Run 0 | D34: Stop 2 | E34: Sleep 0 | F34: Stop 2 | G34: Stop 0 | H34: Stop 2
C35: Run 0 | D35: Standby 0 | E35: Sleep 0 | F35: Standby 0 | G35: Stop 0 | H35: Standby 0
C36: Run 0 | D36: Standby 1 | E36: Sleep 0 | F36: Standby 1 | G36: Stop 0 | H36: Standby 1
C37: Run 0 | D37: Shutdown | E37: Sleep 0 | F37: Shutdown | G37: Stop 0 | H37: Shutdown
C38: Run 1 | D38: Run 0 | E38: Sleep 1 | F38: Run 0 | G38: Stop 1 | H38: Run 0
C39: Run 1 | D39: Run 1 | E39: Sleep 1 | F39: Run 1 | G39: Stop 1 | H39: Run 1
C40: Run 1 | D40: Run 2 | E40: Sleep 1 | F40: Run 2 | G40: Stop 1 | H40: Run 2
C41: Run 1 | D41: Sleep 0 | E41: Sleep 1 | F41: Sleep 0 | G41: Stop 1 | H41: Sleep 0
C42: Run 1 | D42: Sleep 1 | E42: Sleep 1 | F42: Sleep 1 | G42: Stop 1 | H42: Sleep 1
C43: Run 1 | D43: Sleep 2 | E43: Sleep 1 | F43: Sleep 2 | G43: Stop 1 | H43: Sleep 2
C44: Run 1 | D44: Stop 0 | E44: Sleep 1 | F44: Stop 0 | G44: Stop 1 | H44: Stop 0
C45: Run 1 | D45: Stop 1 | E45: Sleep 1 | F45: Stop 1 | G45: Stop 1 | H45: Stop 1
C46: Run 1 | D46: Stop 2 | E46: Sleep 1 | F46: Stop 2 | G46: Stop 1 | H46: Stop 2
C47: Run 1 | D47: Standby 0 | E47: Sleep 1 | F47: Standby 0 | G47: Stop 1 | H47: Standby 0
C48: Run 1 | D48: Standby 1 | E48: Sleep 1 | F48: Standby 1 | G48: Stop 1 | H48: Standby 1
C49: Run 1 | D49: Shutdown | E49: Sleep 1 | F49: Shutdown | G49: Stop 1 | H49: Shutdown
C50: Run 2 | D50: Run 0 | E50: Sleep 2 | F50: Run 0 | G50: Stop 2 | H50: Run 0
C51: Run 2 | D51: Run 1 | E51: Sleep 2 | F51: Run 1 | G51: Stop 2 | H51: Run 1
C52: Run 2 | D52: Run 2 | E52: Sleep 2 | F52: Run 2 | G52: Stop 2 | H52: Run 2
C53: Run 2 | D53: Sleep 0 | E53: Sleep 2 | F53: Sleep 0 | G53: Stop 2 | H53: Sleep 0
C54: Run 2 | D54: Sleep 1 | E54: Sleep 2 | F54: Sleep 1 | G54: Stop 2 | H54: Sleep 1
C55: Run 2 | D55: Sleep 2 | E55: Sleep 2 | F55: Sleep 2 | G55: Stop 2 | H55: Sleep 2
C56: Run 2 | D56: Stop 0 | E56: Sleep 2 | F56: Stop 0 | G56: Stop 2 | H56: Stop 0
C57: Run 2 | D57: Stop 1 | E57: Sleep 2 | F57: Stop 1 | G57: Stop 2 | H57: Stop 1
C58: Run 2 | D58: Stop 2 | E58: Sleep 2 | F58: Stop 2 | G58: Stop 2 | H58: Stop 2
C59: Run 2 | D59: Standby 0 | E59: Sleep 2 | F59: Standby 0 | G59: Stop 2 | H59: Standby 0
C60: Run 2 | D60: Standby 1 | E60: Sleep 2 | F60: Standby 1 | G60: Stop 2 | H60: Standby 1
C61: Run 2 | D61: Shutdown | E61: Sleep 2 | F61: Shutdown | G61: Stop 2 | H61: Shutdown
